Workbook

Sheet 31
A3: Темпер | B3: Время | C3: ЗАПАДНАЯ ГТЭС | BD3: КИМ по дате | BF3: Активная мошность | BG3: Запас мощности
C4: УРАЛ "6000" №1 | F4: УРАЛ "6000" №2 | I4: УРАЛ "6000" №3 | L4: УРАЛ "6000" №4 | O4: ЭГЭС-12C №11 (№51 по ДВС) | R4: ЭГЭС-12C №12 (№50 по ДВС) | U4: САТУРН №6 | X4: САТУРН №7 | AA4: МОТОР-СИЧ №9 | AD4: МОТОР-СИЧ №10 | AG4: ПАЭС №3 | AJ4: ПАЭС №4 | AM4: ДЭС | AP4: ИТОГО | AU4: КИМ | AV4: ЗАПАС | AZ4: Состояние ЭБ | BD4: 1 | BE4: =#REF! ->  | BF4: =AVERAGE(#REF!) ->  | BG4: =AVERAGE(#REF!) -> 
C5: Р акт. | D5: Q реакт. | E5: S пол. | F5: Р акт. | G5: Q реакт. | H5: S пол. | I5: Р акт. | J5: Q реакт. | K5: S пол. | L5: Р акт. | M5: Q реакт. | N5: S пол. | O5: Р акт. | P5: Q реакт. | Q5: S пол. | R5: Р акт. | S5: Q реакт. | T5: S пол. | U5: Р акт. | V5: Q реакт. | W5: S пол. | X5: Р акт. | Y5: Q реакт. | Z5: S пол. | AA5: Р акт. | AB5: Q реакт. | AC5: S пол. | AD5: Р акт. | AE5: Q реакт. | AF5: S пол. | AG5: Р акт. | AH5: Q реакт. | AI5: S пол. | AJ5: Р акт. | AK5: Q реакт. | AL5: S пол. | AM5: Р акт. | AN5: Q реакт. | AO5: S пол. | AP5: Р акт. | AQ5: Q реакт. | AR5: S пол. | AS5: Р ном. | AT5: % | AV5: Р акт. | AW5: Q реакт. | AX5: S пол. | AY5: % | AZ5: работа | BA5: резерв | BB5: ремонт | BC5: ТО | BD5: 2 | BE5: =#REF! ->  | BF5: =AVERAGE(#REF!) ->  | BG5: =AVERAGE(#REF!) -> 
B6: 01:00:00 | C6: 5500 | D6: ='[2]31'!AM6 -> 0 | E6: ='[2]31'!AN6 -> 0 | F6: ='[2]31'!AO6 -> 0 | G6: ='[2]31'!AP6 -> 0 | H6: ='[2]31'!AQ6 -> 0 | I6: ='[2]31'!AR6 -> 0 | J6: ='[2]31'!AS6 -> 0 | K6: ='[2]31'!AT6 -> 0 | L6: ='[2]31'!AU6 -> 0 | M6: ='[2]31'!AV6 -> 0 | N6: ='[2]31'!AW6 -> 0 | O6: ='[2]31'!AX6 -> 0 | P6: ='[2]31'!AY6 -> 0 | Q6: ='[2]31'!AZ6 -> 0 | R6: ='[2]31'!BA6 -> 0 | S6: ='[2]31'!BB6 -> 0 | T6: ='[2]31'!BC6 -> 0 | U6: ='[2]31'!BD6 -> 0 | V6: ='[2]31'!BE6 -> 0 | W6: ='[2]31'!BF6 -> 0 | X6: ='[2]31'!BG6 -> 0 | Y6: ='[2]31'!BH6 -> 0 | Z6: ='[2]31'!BI6 -> 0 | AA6: ='[2]31'!BJ6 -> 0 | AB6: ='[2]31'!BK6 -> 0 | AC6: ='[2]31'!BL6 -> 0 | AD6: ='[2]31'!BM6 -> 0 | AE6: ='[2]31'!BN6 -> 0 | AF6: ='[2]31'!BO6 -> 0 | AG6: ='[2]31'!BP6 -> 0 | AH6: ='[2]31'!BQ6 -> 0 | AI6: ='[2]31'!BR6 -> 0 | AJ6: ='[2]31'!BS6 -> 0 | AK6: ='[2]31'!BT6 -> 0 | AL6: ='[2]31'!BU6 -> 0 | AM6: ='[2]31'!BV6 -> 0 | AN6: ='[2]31'!BW6 -> 0 | AO6: ='[2]31'!BX6 -> 0 | AP6: =SUM(C6,F6,I6,L6,O6,R6,U6,X6,AA6,AD6,AG6,AJ6,AM6) -> 5500 | AQ6: 0 | AR6: 0 | AS6: =SUM(IF(ISNUMBER(C6),IF(A6>15,-40*A6+6600,6000),0),IF(ISNUMBER(F6),IF(A6>15,-40*A6+6600,6000),0),IF(ISNUMBER(I6),IF(A6>15,-40*A6+6600,6000),0),IF(ISNUMBER(L6),IF(A6>15,-40*A6+6600,6000),0),IF(ISNUMBER(O6),IF(A6>15,-100*A6+13500,12000),0),IF(ISNUMBER(R6),IF(A6>15,-100*A6+13500,12000),0),IF(ISNUMBER(U6),IF(A6>15,-40*A6+6600,6000),0),IF(ISNUMBER(X6),IF(A6>15,-40*A6+6600,6000),0),IF(ISNUMBER(AA6),IF(A6>25,-66.7*A6+7966.7,6300),0),IF(ISNUMBER(AD6),IF(A6>25,-66.7*A6+7966.7,6300),0),IF(ISNUMBER(AG6),1500,0),IF(ISNUMBER(AM6),640,0),IF(ISNUMBER(AJ6),1500,0)) -> 76240 | AT6: =AP6*100/(SUM(IF(ISNUMBER(C6),6000,0),IF(ISNUMBER(F6),6000,0),IF(ISNUMBER(I6),6000,0),IF(ISNUMBER(L6),6000,0),IF(ISNUMBER(O6),12000,0),IF(ISNUMBER(R6),12000,0),IF(ISNUMBER(U6),6000,0),IF(ISNUMBER(X6),6000,0),IF(ISNUMBER(AA6),6000,0),IF(ISNUMBER(AD6),6000,0),IF(ISNUMBER(AG6),2500,0),IF(ISNUMBER(AM6),640,0),IF(ISNUMBER(AJ6),2500,0))) -> 7.083977331 | AU6: =AP6/AS6 -> 0.0721406086 | AV6: =AS6-AP6 -> 70740 | AW6: =SUM(IF(ISNUMBER(C6),3980-D6,0),IF(ISNUMBER(F6),3980-G6,0),IF(ISNUMBER(I6),3980-J6,0),IF(ISNUMBER(L6),3980-M6,0),IF(ISNUMBER(O6),7960-P6,0),IF(ISNUMBER(R6),7960-S6,0),IF(ISNUMBER(U6),3980-V6,0),IF(ISNUMBER(X6),3980-Y6,0),IF(ISNUMBER(AA6),3980-AB6,0),IF(ISNUMBER(AD6),3980-AE6,0),IF(ISNUMBER(AG6),1875-AH6,0),IF(ISNUMBER(AJ6),1875-AK6,0),IF(ISNUMBER(AM6),480-AN6,0)) -> 51990 | AX6: =SUM(IF(ISNUMBER(C6),7200-E6,0),IF(ISNUMBER(F6),7200-H6,0),IF(ISNUMBER(I6),7200-K6,0),IF(ISNUMBER(L6),7200-N6,0),IF(ISNUMBER(O6),14400-Q6,0),IF(ISNUMBER(R6),14400-T6,0),IF(ISNUMBER(U6),7200-W6,0),IF(ISNUMBER(X6),7200-Z6,0),IF(ISNUMBER(AA6),7200-AC6,0),IF(ISNUMBER(AD6),7200-AF6,0),IF(ISNUMBER(AG6),3125-AI6,0),IF(ISNUMBER(AJ6),3125-AL6,0),IF(ISNUMBER(AM6),800-AO6,0)) -> 93450 | AY6: =100-AT6 -> 92.91602267 | AZ6: =COUNTIF(C6,">=0")+COUNTIF(F6,">=0")+COUNTIF(I6,">=0")+COUNTIF(L6,">=0")+COUNTIF(O6,">=0")+COUNTIF(R6,">=0")+COUNTIF(U6,">=0")+COUNTIF(X6,">=0")+COUNTIF(AA6,">=0")+COUNTIF(AD6,">=0")+COUNTIF(AG6,">=0")+COUNTIF(AJ6,">=0")+COUNTIF(AM6,">=0") -> 13 | BA6: =COUNTIF(C6,"РЕЗЕРВ")+COUNTIF(F6,"РЕЗЕРВ")+COUNTIF(I6,"РЕЗЕРВ")+COUNTIF(L6,"РЕЗЕРВ")+COUNTIF(O6,"РЕЗЕРВ")+COUNTIF(R6,"РЕЗЕРВ")+COUNTIF(U6,"РЕЗЕРВ")+COUNTIF(X6,"РЕЗЕРВ")+COUNTIF(AA6,"РЕЗЕРВ")+COUNTIF(AD6,"РЕЗЕРВ")+COUNTIF(AG6,"РЕЗЕРВ")+COUNTIF(AJ6,"РЕЗЕРВ")+COUNTIF(AM6,"РЕЗЕРВ") -> 0 | BB6: =COUNTIF(C6,"РЕМОНТ")+COUNTIF(F6,"РЕМОНТ")+COUNTIF(I6,"РЕМОНТ")+COUNTIF(L6,"РЕМОНТ")+COUNTIF(O6,"РЕМОНТ")+COUNTIF(Q6,"РЕМОНТ")+COUNTIF(U6,"РЕМОНТ")+COUNTIF(X6,"РЕМОНТ")+COUNTIF(AA6,"РЕМОНТ")+COUNTIF(AD6,"РЕМОНТ")+COUNTIF(AG6,"РЕМОНТ")+COUNTIF(AJ6,"РЕМОНТ")+COUNTIF(AM6,"РЕМОНТ") -> 0 | BC6: =COUNTIF(C6,"ТО")+COUNTIF(F6,"ТО")+COUNTIF(I6,"ТО")+COUNTIF(L6,"ТО")+COUNTIF(O6,"ТО")+COUNTIF(R6,"ТО")+COUNTIF(U6,"ТО")+COUNTIF(X6,"ТО")+COUNTIF(AA6,"ТО")+COUNTIF(AD6,"ТО")+COUNTIF(AG6,"ТО")+COUNTIF(AJ6,"ТО")+COUNTIF(AM6,"ТО") -> 0 | BD6: 3 | BE6: =#REF! ->  | BF6: =AVERAGE(#REF!) ->  | BG6: =AVERAGE(#REF!) -> 
B7: 02:00:00 | C7: 5200 | D7: ='[2]31'!AM7 -> 0 | E7: ='[2]31'!AN7 -> 0 | F7: ='[2]31'!AO7 -> 0 | G7: ='[2]31'!AP7 -> 0 | H7: ='[2]31'!AQ7 -> 0 | I7: ='[2]31'!AR7 -> 0 | J7: ='[2]31'!AS7 -> 0 | K7: ='[2]31'!AT7 -> 0 | L7: ='[2]31'!AU7 -> 0 | M7: ='[2]31'!AV7 -> 0 | N7: ='[2]31'!AW7 -> 0 | O7: ='[2]31'!AX7 -> 0 | P7: ='[2]31'!AY7 -> 0 | Q7: ='[2]31'!AZ7 -> 0 | R7: ='[2]31'!BA7 -> 0 | S7: ='[2]31'!BB7 -> 0 | T7: ='[2]31'!BC7 -> 0 | U7: ='[2]31'!BD7 -> 0 | V7: ='[2]31'!BE7 -> 0 | W7: ='[2]31'!BF7 -> 0 | X7: ='[2]31'!BG7 -> 0 | Y7: ='[2]31'!BH7 -> 0 | Z7: ='[2]31'!BI7 -> 0 | AA7: ='[2]31'!BJ7 -> 0 | AB7: ='[2]31'!BK7 -> 0 | AC7: ='[2]31'!BL7 -> 0 | AD7: ='[2]31'!BM7 -> 0 | AE7: ='[2]31'!BN7 -> 0 | AF7: ='[2]31'!BO7 -> 0 | AG7: ='[2]31'!BP7 -> 0 | AH7: ='[2]31'!BQ7 -> 0 | AI7: ='[2]31'!BR7 -> 0 | AJ7: ='[2]31'!BS7 -> 0 | AK7: ='[2]31'!BT7 -> 0 | AL7: ='[2]31'!BU7 -> 0 | AM7: ='[2]31'!BV7 -> 0 | AN7: ='[2]31'!BW7 -> 0 | AO7: ='[2]31'!BX7 -> 0 | AP7: 5200 | AQ7: 0 | AR7: 0 | AS7: 76240 | AT7: 6.697578568 | AU7: 0.06820566632 | AV7: =AS7-AP7 -> 71040 | AW7: 51990 | AX7: 93450 | AY7: =100-AT7 -> 93.30242143 | AZ7: 13 | BA7: 0 | BB7: 0 | BC7: 0 | BD7: 4 | BE7: =#REF! ->  | BF7: =AVERAGE(#REF!) ->  | BG7: =AVERAGE(#REF!) -> 
B8: 03:00:00 | C8: Резерв | D8: ='[2]31'!AM8 -> 0 | E8: ='[2]31'!AN8 -> 0 | F8: ='[2]31'!AO8 -> 0 | G8: ='[2]31'!AP8 -> 0 | H8: ='[2]31'!AQ8 -> 0 | I8: ='[2]31'!AR8 -> 0 | J8: ='[2]31'!AS8 -> 0 | K8: ='[2]31'!AT8 -> 0 | L8: ='[2]31'!AU8 -> 0 | M8: ='[2]31'!AV8 -> 0 | N8: ='[2]31'!AW8 -> 0 | O8: ='[2]31'!AX8 -> 0 | P8: ='[2]31'!AY8 -> 0 | Q8: ='[2]31'!AZ8 -> 0 | R8: ='[2]31'!BA8 -> 0 | S8: ='[2]31'!BB8 -> 0 | T8: ='[2]31'!BC8 -> 0 | U8: ='[2]31'!BD8 -> 0 | V8: ='[2]31'!BE8 -> 0 | W8: ='[2]31'!BF8 -> 0 | X8: ='[2]31'!BG8 -> 0 | Y8: ='[2]31'!BH8 -> 0 | Z8: ='[2]31'!BI8 -> 0 | AA8: ='[2]31'!BJ8 -> 0 | AB8: ='[2]31'!BK8 -> 0 | AC8: ='[2]31'!BL8 -> 0 | AD8: ='[2]31'!BM8 -> 0 | AE8: ='[2]31'!BN8 -> 0 | AF8: ='[2]31'!BO8 -> 0 | AG8: ='[2]31'!BP8 -> 0 | AH8: ='[2]31'!BQ8 -> 0 | AI8: ='[2]31'!BR8 -> 0 | AJ8: ='[2]31'!BS8 -> 0 | AK8: ='[2]31'!BT8 -> 0 | AL8: ='[2]31'!BU8 -> 0 | AM8: ='[2]31'!BV8 -> 0 | AN8: ='[2]31'!BW8 -> 0 | AO8: ='[2]31'!BX8 -> 0 | AP8: 0 | AQ8: 0 | AR8: 0 | AS8: 70240 | AT8: 0 | AU8: 0 | AV8: 70240 | AW8: 48010 | AX8: 86250 | AY8: 100 | AZ8: 12 | BA8: 1 | BB8: 0 | BC8: 0 | BD8: 5 | BE8: =#REF! ->  | BF8: =AVERAGE(#REF!) ->  | BG8: =AVERAGE(#REF!) -> 
B9: 04:00:00 | C9: Резерв | D9: ='[2]31'!AM9 -> 0 | E9: ='[2]31'!AN9 -> 0 | F9: ='[2]31'!AO9 -> 0 | G9: ='[2]31'!AP9 -> 0 | H9: ='[2]31'!AQ9 -> 0 | I9: ='[2]31'!AR9 -> 0 | J9: ='[2]31'!AS9 -> 0 | K9: ='[2]31'!AT9 -> 0 | L9: ='[2]31'!AU9 -> 0 | M9: ='[2]31'!AV9 -> 0 | N9: ='[2]31'!AW9 -> 0 | O9: ='[2]31'!AX9 -> 0 | P9: ='[2]31'!AY9 -> 0 | Q9: ='[2]31'!AZ9 -> 0 | R9: ='[2]31'!BA9 -> 0 | S9: ='[2]31'!BB9 -> 0 | T9: ='[2]31'!BC9 -> 0 | U9: ='[2]31'!BD9 -> 0 | V9: ='[2]31'!BE9 -> 0 | W9: ='[2]31'!BF9 -> 0 | X9: ='[2]31'!BG9 -> 0 | Y9: ='[2]31'!BH9 -> 0 | Z9: ='[2]31'!BI9 -> 0 | AA9: ='[2]31'!BJ9 -> 0 | AB9: ='[2]31'!BK9 -> 0 | AC9: ='[2]31'!BL9 -> 0 | AD9: ='[2]31'!BM9 -> 0 | AE9: ='[2]31'!BN9 -> 0 | AF9: ='[2]31'!BO9 -> 0 | AG9: ='[2]31'!BP9 -> 0 | AH9: ='[2]31'!BQ9 -> 0 | AI9: ='[2]31'!BR9 -> 0 | AJ9: ='[2]31'!BS9 -> 0 | AK9: ='[2]31'!BT9 -> 0 | AL9: ='[2]31'!BU9 -> 0 | AM9: ='[2]31'!BV9 -> 0 | AN9: ='[2]31'!BW9 -> 0 | AO9: ='[2]31'!BX9 -> 0 | AP9: 0 | AQ9: 0 | AR9: 0 | AS9: 70240 | AT9: 0 | AU9: 0 | AV9: 70240 | AW9: 48010 | AX9: 86250 | AY9: 100 | AZ9: 12 | BA9: 1 | BB9: 0 | BC9: 0 | BD9: 6 | BE9: =#REF! ->  | BF9: =AVERAGE(#REF!) ->  | BG9: =AVERAGE(#REF!) -> 
B10: 05:00:00 | C10: Резерв | D10: ='[2]31'!AM10 -> 0 | E10: ='[2]31'!AN10 -> 0 | F10: ='[2]31'!AO10 -> 0 | G10: ='[2]31'!AP10 -> 0 | H10: ='[2]31'!AQ10 -> 0 | I10: ='[2]31'!AR10 -> 0 | J10: ='[2]31'!AS10 -> 0 | K10: ='[2]31'!AT10 -> 0 | L10: ='[2]31'!AU10 -> 0 | M10: ='[2]31'!AV10 -> 0 | N10: ='[2]31'!AW10 -> 0 | O10: ='[2]31'!AX10 -> 0 | P10: ='[2]31'!AY10 -> 0 | Q10: ='[2]31'!AZ10 -> 0 | R10: ='[2]31'!BA10 -> 0 | S10: ='[2]31'!BB10 -> 0 | T10: ='[2]31'!BC10 -> 0 | U10: ='[2]31'!BD10 -> 0 | V10: ='[2]31'!BE10 -> 0 | W10: ='[2]31'!BF10 -> 0 | X10: ='[2]31'!BG10 -> 0 | Y10: ='[2]31'!BH10 -> 0 | Z10: ='[2]31'!BI10 -> 0 | AA10: ='[2]31'!BJ10 -> 0 | AB10: ='[2]31'!BK10 -> 0 | AC10: ='[2]31'!BL10 -> 0 | AD10: ='[2]31'!BM10 -> 0 | AE10: ='[2]31'!BN10 -> 0 | AF10: ='[2]31'!BO10 -> 0 | AG10: ='[2]31'!BP10 -> 0 | AH10: ='[2]31'!BQ10 -> 0 | AI10: ='[2]31'!BR10 -> 0 | AJ10: ='[2]31'!BS10 -> 0 | AK10: ='[2]31'!BT10 -> 0 | AL10: ='[2]31'!BU10 -> 0 | AM10: ='[2]31'!BV10 -> 0 | AN10: ='[2]31'!BW10 -> 0 | AO10: ='[2]31'!BX10 -> 0 | AP10: 0 | AQ10: 0 | AR10: 0 | AS10: 70240 | AT10: 0 | AU10: 0 | AV10: 70240 | AW10: 48010 | AX10: 86250 | AY10: 100 | AZ10: 12 | BA10: 1 | BB10: 0 | BC10: 0 | BD10: 7 | BE10: =#REF! ->  | BF10: =AVERAGE(#REF!) ->  | BG10: =AVERAGE(#REF!) -> 
B11: 06:00:00 | C11: 5300 | D11: ='[2]31'!AM11 -> 0 | E11: ='[2]31'!AN11 -> 0 | F11: ='[2]31'!AO11 -> 0 | G11: ='[2]31'!AP11 -> 0 | H11: ='[2]31'!AQ11 -> 0 | I11: ='[2]31'!AR11 -> 0 | J11: ='[2]31'!AS11 -> 0 | K11: ='[2]31'!AT11 -> 0 | L11: ='[2]31'!AU11 -> 0 | M11: ='[2]31'!AV11 -> 0 | N11: ='[2]31'!AW11 -> 0 | O11: ='[2]31'!AX11 -> 0 | P11: ='[2]31'!AY11 -> 0 | Q11: ='[2]31'!AZ11 -> 0 | R11: ='[2]31'!BA11 -> 0 | S11: ='[2]31'!BB11 -> 0 | T11: ='[2]31'!BC11 -> 0 | U11: ='[2]31'!BD11 -> 0 | V11: ='[2]31'!BE11 -> 0 | W11: ='[2]31'!BF11 -> 0 | X11: ='[2]31'!BG11 -> 0 | Y11: ='[2]31'!BH11 -> 0 | Z11: ='[2]31'!BI11 -> 0 | AA11: ='[2]31'!BJ11 -> 0 | AB11: ='[2]31'!BK11 -> 0 | AC11: ='[2]31'!BL11 -> 0 | AD11: ='[2]31'!BM11 -> 0 | AE11: ='[2]31'!BN11 -> 0 | AF11: ='[2]31'!BO11 -> 0 | AG11: ='[2]31'!BP11 -> 0 | AH11: ='[2]31'!BQ11 -> 0 | AI11: ='[2]31'!BR11 -> 0 | AJ11: ='[2]31'!BS11 -> 0 | AK11: ='[2]31'!BT11 -> 0 | AL11: ='[2]31'!BU11 -> 0 | AM11: ='[2]31'!BV11 -> 0 | AN11: ='[2]31'!BW11 -> 0 | AO11: ='[2]31'!BX11 -> 0 | AP11: 5300 | AQ11: 0 | AR11: 0 | AS11: 76240 | AT11: 6.826378156 | AU11: 0.06951731375 | AV11: 70940 | AW11: 51990 | AX11: 93450 | AY11: 93.17362184 | AZ11: 13 | BA11: 0 | BB11: 0 | BC11: 0 | BD11: 8 | BE11: =#REF! ->  | BF11: =AVERAGE(#REF!) ->  | BG11: =AVERAGE(#REF!) -> 
B12: 07:00:00 | C12: 5100 | D12: ='[2]31'!AM12 -> 0 | E12: ='[2]31'!AN12 -> 0 | F12: ='[2]31'!AO12 -> 0 | G12: ='[2]31'!AP12 -> 0 | H12: ='[2]31'!AQ12 -> 0 | I12: ='[2]31'!AR12 -> 0 | J12: ='[2]31'!AS12 -> 0 | K12: ='[2]31'!AT12 -> 0 | L12: ='[2]31'!AU12 -> 0 | M12: ='[2]31'!AV12 -> 0 | N12: ='[2]31'!AW12 -> 0 | O12: ='[2]31'!AX12 -> 0 | P12: ='[2]31'!AY12 -> 0 | Q12: ='[2]31'!AZ12 -> 0 | R12: ='[2]31'!BA12 -> 0 | S12: ='[2]31'!BB12 -> 0 | T12: ='[2]31'!BC12 -> 0 | U12: ='[2]31'!BD12 -> 0 | V12: ='[2]31'!BE12 -> 0 | W12: ='[2]31'!BF12 -> 0 | X12: ='[2]31'!BG12 -> 0 | Y12: ='[2]31'!BH12 -> 0 | Z12: ='[2]31'!BI12 -> 0 | AA12: ='[2]31'!BJ12 -> 0 | AB12: ='[2]31'!BK12 -> 0 | AC12: ='[2]31'!BL12 -> 0 | AD12: ='[2]31'!BM12 -> 0 | AE12: ='[2]31'!BN12 -> 0 | AF12: ='[2]31'!BO12 -> 0 | AG12: ='[2]31'!BP12 -> 0 | AH12: ='[2]31'!BQ12 -> 0 | AI12: ='[2]31'!BR12 -> 0 | AJ12: ='[2]31'!BS12 -> 0 | AK12: ='[2]31'!BT12 -> 0 | AL12: ='[2]31'!BU12 -> 0 | AM12: ='[2]31'!BV12 -> 0 | AN12: ='[2]31'!BW12 -> 0 | AO12: ='[2]31'!BX12 -> 0 | AP12: 5100 | AQ12: 0 | AR12: 0 | AS12: 76240 | AT12: 6.56877898 | AU12: 0.06689401889 | AV12: 71140 | AW12: 51990 | AX12: 93450 | AY12: 93.43122102 | AZ12: 13 | BA12: 0 | BB12: 0 | BC12: 0 | BD12: 9 | BE12: =#REF! ->  | BF12: =AVERAGE(#REF!) ->  | BG12: =AVERAGE(#REF!) -> 
B13: 08:00:00 | C13: ='[2]31'!AL13 -> 0 | D13: ='[2]31'!AM13 -> 0 | E13: ='[2]31'!AN13 -> 0 | F13: ='[2]31'!AO13 -> 0 | G13: ='[2]31'!AP13 -> 0 | H13: ='[2]31'!AQ13 -> 0 | I13: ='[2]31'!AR13 -> 0 | J13: ='[2]31'!AS13 -> 0 | K13: ='[2]31'!AT13 -> 0 | L13: ='[2]31'!AU13 -> 0 | M13: ='[2]31'!AV13 -> 0 | N13: ='[2]31'!AW13 -> 0 | O13: ='[2]31'!AX13 -> 0 | P13: ='[2]31'!AY13 -> 0 | Q13: ='[2]31'!AZ13 -> 0 | R13: ='[2]31'!BA13 -> 0 | S13: ='[2]31'!BB13 -> 0 | T13: ='[2]31'!BC13 -> 0 | U13: ='[2]31'!BD13 -> 0 | V13: ='[2]31'!BE13 -> 0 | W13: ='[2]31'!BF13 -> 0 | X13: ='[2]31'!BG13 -> 0 | Y13: ='[2]31'!BH13 -> 0 | Z13: ='[2]31'!BI13 -> 0 | AA13: ='[2]31'!BJ13 -> 0 | AB13: ='[2]31'!BK13 -> 0 | AC13: ='[2]31'!BL13 -> 0 | AD13: ='[2]31'!BM13 -> 0 | AE13: ='[2]31'!BN13 -> 0 | AF13: ='[2]31'!BO13 -> 0 | AG13: ='[2]31'!BP13 -> 0 | AH13: ='[2]31'!BQ13 -> 0 | AI13: ='[2]31'!BR13 -> 0 | AJ13: ='[2]31'!BS13 -> 0 | AK13: ='[2]31'!BT13 -> 0 | AL13: ='[2]31'!BU13 -> 0 | AM13: ='[2]31'!BV13 -> 0 | AN13: ='[2]31'!BW13 -> 0 | AO13: ='[2]31'!BX13 -> 0 | AP13: =SUM(C13,F13,I13,L13,O13,R13,U13,X13,AA13,AD13,AG13,AJ13,AM13) -> 0 | AQ13: 0 | AR13: 0 | AS13: =SUM(IF(ISNUMBER(C13),IF(A13>15,-40*A13+6600,6000),0),IF(ISNUMBER(F13),IF(A13>15,-40*A13+6600,6000),0),IF(ISNUMBER(I13),IF(A13>15,-40*A13+6600,6000),0),IF(ISNUMBER(L13),IF(A13>15,-40*A13+6600,6000),0),IF(ISNUMBER(O13),IF(A13>15,-100*A13+13500,12000),0),IF(ISNUMBER(R13),IF(A13>15,-100*A13+13500,12000),0),IF(ISNUMBER(U13),IF(A13>15,-40*A13+6600,6000),0),IF(ISNUMBER(X13),IF(A13>15,-40*A13+6600,6000),0),IF(ISNUMBER(AA13),IF(A13>25,-66.7*A13+7966.7,6300),0),IF(ISNUMBER(AD13),IF(A13>25,-66.7*A13+7966.7,6300),0),IF(ISNUMBER(AG13),1500,0),IF(ISNUMBER(AM13),640,0),IF(ISNUMBER(AJ13),1500,0)) -> 76240 | AT13: =AP13*100/(SUM(IF(ISNUMBER(C13),6000,0),IF(ISNUMBER(F13),6000,0),IF(ISNUMBER(I13),6000,0),IF(ISNUMBER(L13),6000,0),IF(ISNUMBER(O13),12000,0),IF(ISNUMBER(R13),12000,0),IF(ISNUMBER(U13),6000,0),IF(ISNUMBER(X13),6000,0),IF(ISNUMBER(AA13),6000,0),IF(ISNUMBER(AD13),6000,0),IF(ISNUMBER(AG13),2500,0),IF(ISNUMBER(AM13),640,0),IF(ISNUMBER(AJ13),2500,0))) -> 0 | AU13: 0 | AV13: =AS13-AP13 -> 76240 | AW13: =SUM(IF(ISNUMBER(C13),3980-D13,0),IF(ISNUMBER(F13),3980-G13,0),IF(ISNUMBER(I13),3980-J13,0),IF(ISNUMBER(L13),3980-M13,0),IF(ISNUMBER(O13),7960-P13,0),IF(ISNUMBER(R13),7960-S13,0),IF(ISNUMBER(U13),3980-V13,0),IF(ISNUMBER(X13),3980-Y13,0),IF(ISNUMBER(AA13),3980-AB13,0),IF(ISNUMBER(AD13),3980-AE13,0),IF(ISNUMBER(AG13),1875-AH13,0),IF(ISNUMBER(AJ13),1875-AK13,0),IF(ISNUMBER(AM13),480-AN13,0)) -> 51990 | AX13: =SUM(IF(ISNUMBER(C13),7200-E13,0),IF(ISNUMBER(F13),7200-H13,0),IF(ISNUMBER(I13),7200-K13,0),IF(ISNUMBER(L13),7200-N13,0),IF(ISNUMBER(O13),14400-Q13,0),IF(ISNUMBER(R13),14400-T13,0),IF(ISNUMBER(U13),7200-W13,0),IF(ISNUMBER(X13),7200-Z13,0),IF(ISNUMBER(AA13),7200-AC13,0),IF(ISNUMBER(AD13),7200-AF13,0),IF(ISNUMBER(AG13),3125-AI13,0),IF(ISNUMBER(AJ13),3125-AL13,0),IF(ISNUMBER(AM13),800-AO13,0)) -> 93450 | AY13: 100 | AZ13: =COUNTIF(C13,">=0")+COUNTIF(F13,">=0")+COUNTIF(I13,">=0")+COUNTIF(L13,">=0")+COUNTIF(O13,">=0")+COUNTIF(R13,">=0")+COUNTIF(U13,">=0")+COUNTIF(X13,">=0")+COUNTIF(AA13,">=0")+COUNTIF(AD13,">=0")+COUNTIF(AG13,">=0")+COUNTIF(AJ13,">=0")+COUNTIF(AM13,">=0") -> 13 | BA13: =COUNTIF(C13,"РЕЗЕРВ")+COUNTIF(F13,"РЕЗЕРВ")+COUNTIF(I13,"РЕЗЕРВ")+COUNTIF(L13,"РЕЗЕРВ")+COUNTIF(O13,"РЕЗЕРВ")+COUNTIF(R13,"РЕЗЕРВ")+COUNTIF(U13,"РЕЗЕРВ")+COUNTIF(X13,"РЕЗЕРВ")+COUNTIF(AA13,"РЕЗЕРВ")+COUNTIF(AD13,"РЕЗЕРВ")+COUNTIF(AG13,"РЕЗЕРВ")+COUNTIF(AJ13,"РЕЗЕРВ")+COUNTIF(AM13,"РЕЗЕРВ") -> 0 | BB13: =COUNTIF(C13,"РЕМОНТ")+COUNTIF(F13,"РЕМОНТ")+COUNTIF(I13,"РЕМОНТ")+COUNTIF(L13,"РЕМОНТ")+COUNTIF(O13,"РЕМОНТ")+COUNTIF(Q13,"РЕМОНТ")+COUNTIF(U13,"РЕМОНТ")+COUNTIF(X13,"РЕМОНТ")+COUNTIF(AA13,"РЕМОНТ")+COUNTIF(AD13,"РЕМОНТ")+COUNTIF(AG13,"РЕМОНТ")+COUNTIF(AJ13,"РЕМОНТ")+COUNTIF(AM13,"РЕМОНТ") -> 0 | BC13: =COUNTIF(C13,"ТО")+COUNTIF(F13,"ТО")+COUNTIF(I13,"ТО")+COUNTIF(L13,"ТО")+COUNTIF(O13,"ТО")+COUNTIF(R13,"ТО")+COUNTIF(U13,"ТО")+COUNTIF(X13,"ТО")+COUNTIF(AA13,"ТО")+COUNTIF(AD13,"ТО")+COUNTIF(AG13,"ТО")+COUNTIF(AJ13,"ТО")+COUNTIF(AM13,"ТО") -> 0 | BD13: 10 | BE13: =#REF! ->  | BF13: =AVERAGE(#REF!) ->  | BG13: =AVERAGE(#REF!) -> 
B14: 09:00:00 | C14: ='[2]31'!AL14 -> 0 | D14: ='[2]31'!AM14 -> 0 | E14: ='[2]31'!AN14 -> 0 | F14: ='[2]31'!AO14 -> 0 | G14: ='[2]31'!AP14 -> 0 | H14: ='[2]31'!AQ14 -> 0 | I14: ='[2]31'!AR14 -> 0 | J14: ='[2]31'!AS14 -> 0 | K14: ='[2]31'!AT14 -> 0 | L14: ='[2]31'!AU14 -> 0 | M14: ='[2]31'!AV14 -> 0 | N14: ='[2]31'!AW14 -> 0 | O14: ='[2]31'!AX14 -> 0 | P14: ='[2]31'!AY14 -> 0 | Q14: ='[2]31'!AZ14 -> 0 | R14: ='[2]31'!BA14 -> 0 | S14: ='[2]31'!BB14 -> 0 | T14: ='[2]31'!BC14 -> 0 | U14: ='[2]31'!BD14 -> 0 | V14: ='[2]31'!BE14 -> 0 | W14: ='[2]31'!BF14 -> 0 | X14: ='[2]31'!BG14 -> 0 | Y14: ='[2]31'!BH14 -> 0 | Z14: ='[2]31'!BI14 -> 0 | AA14: ='[2]31'!BJ14 -> 0 | AB14: ='[2]31'!BK14 -> 0 | AC14: ='[2]31'!BL14 -> 0 | AD14: ='[2]31'!BM14 -> 0 | AE14: ='[2]31'!BN14 -> 0 | AF14: ='[2]31'!BO14 -> 0 | AG14: ='[2]31'!BP14 -> 0 | AH14: ='[2]31'!BQ14 -> 0 | AI14: ='[2]31'!BR14 -> 0 | AJ14: ='[2]31'!BS14 -> 0 | AK14: ='[2]31'!BT14 -> 0 | AL14: ='[2]31'!BU14 -> 0 | AM14: ='[2]31'!BV14 -> 0 | AN14: ='[2]31'!BW14 -> 0 | AO14: ='[2]31'!BX14 -> 0 | AP14: 0 | AQ14: 0 | AR14: 0 | AS14: 76240 | AT14: 0 | AU14: 0 | AV14: 76240 | AW14: 51990 | AX14: 93450 | AY14: 100 | AZ14: 13 | BA14: 0 | BB14: 0 | BC14: 0 | BD14: 11 | BE14: =#REF! ->  | BF14: =AVERAGE(#REF!) ->  | BG14: =AVERAGE(#REF!) -> 
B15: 10:00:00 | C15: ='[2]31'!AL15 -> 0 | D15: ='[2]31'!AM15 -> 0 | E15: ='[2]31'!AN15 -> 0 | F15: ='[2]31'!AO15 -> 0 | G15: ='[2]31'!AP15 -> 0 | H15: ='[2]31'!AQ15 -> 0 | I15: ='[2]31'!AR15 -> 0 | J15: ='[2]31'!AS15 -> 0 | K15: ='[2]31'!AT15 -> 0 | L15: ='[2]31'!AU15 -> 0 | M15: ='[2]31'!AV15 -> 0 | N15: ='[2]31'!AW15 -> 0 | O15: ='[2]31'!AX15 -> 0 | P15: ='[2]31'!AY15 -> 0 | Q15: ='[2]31'!AZ15 -> 0 | R15: ='[2]31'!BA15 -> 0 | S15: ='[2]31'!BB15 -> 0 | T15: ='[2]31'!BC15 -> 0 | U15: ='[2]31'!BD15 -> 0 | V15: ='[2]31'!BE15 -> 0 | W15: ='[2]31'!BF15 -> 0 | X15: ='[2]31'!BG15 -> 0 | Y15: ='[2]31'!BH15 -> 0 | Z15: ='[2]31'!BI15 -> 0 | AA15: ='[2]31'!BJ15 -> 0 | AB15: ='[2]31'!BK15 -> 0 | AC15: ='[2]31'!BL15 -> 0 | AD15: ='[2]31'!BM15 -> 0 | AE15: ='[2]31'!BN15 -> 0 | AF15: ='[2]31'!BO15 -> 0 | AG15: ='[2]31'!BP15 -> 0 | AH15: ='[2]31'!BQ15 -> 0 | AI15: ='[2]31'!BR15 -> 0 | AJ15: ='[2]31'!BS15 -> 0 | AK15: ='[2]31'!BT15 -> 0 | AL15: ='[2]31'!BU15 -> 0 | AM15: ='[2]31'!BV15 -> 0 | AN15: ='[2]31'!BW15 -> 0 | AO15: ='[2]31'!BX15 -> 0 | AP15: =SUM(C15,F15,I15,L15,O15,R15,U15,X15,AA15,AD15,AG15,AJ15,AM15) -> 0 | AQ15: 0 | AR15: 0 | AS15: =SUM(IF(ISNUMBER(C15),IF(A15>15,-40*A15+6600,6000),0),IF(ISNUMBER(F15),IF(A15>15,-40*A15+6600,6000),0),IF(ISNUMBER(I15),IF(A15>15,-40*A15+6600,6000),0),IF(ISNUMBER(L15),IF(A15>15,-40*A15+6600,6000),0),IF(ISNUMBER(O15),IF(A15>15,-100*A15+13500,12000),0),IF(ISNUMBER(R15),IF(A15>15,-100*A15+13500,12000),0),IF(ISNUMBER(U15),IF(A15>15,-40*A15+6600,6000),0),IF(ISNUMBER(X15),IF(A15>15,-40*A15+6600,6000),0),IF(ISNUMBER(AA15),IF(A15>25,-66.7*A15+7966.7,6300),0),IF(ISNUMBER(AD15),IF(A15>25,-66.7*A15+7966.7,6300),0),IF(ISNUMBER(AG15),1500,0),IF(ISNUMBER(AM15),640,0),IF(ISNUMBER(AJ15),1500,0)) -> 76240 | AT15: =AP15*100/(SUM(IF(ISNUMBER(C15),6000,0),IF(ISNUMBER(F15),6000,0),IF(ISNUMBER(I15),6000,0),IF(ISNUMBER(L15),6000,0),IF(ISNUMBER(O15),12000,0),IF(ISNUMBER(R15),12000,0),IF(ISNUMBER(U15),6000,0),IF(ISNUMBER(X15),6000,0),IF(ISNUMBER(AA15),6000,0),IF(ISNUMBER(AD15),6000,0),IF(ISNUMBER(AG15),2500,0),IF(ISNUMBER(AM15),640,0),IF(ISNUMBER(AJ15),2500,0))) -> 0 | AU15: 0 | AV15: 76240 | AW15: =SUM(IF(ISNUMBER(C15),3980-D15,0),IF(ISNUMBER(F15),3980-G15,0),IF(ISNUMBER(I15),3980-J15,0),IF(ISNUMBER(L15),3980-M15,0),IF(ISNUMBER(O15),7960-P15,0),IF(ISNUMBER(R15),7960-S15,0),IF(ISNUMBER(U15),3980-V15,0),IF(ISNUMBER(X15),3980-Y15,0),IF(ISNUMBER(AA15),3980-AB15,0),IF(ISNUMBER(AD15),3980-AE15,0),IF(ISNUMBER(AG15),1875-AH15,0),IF(ISNUMBER(AJ15),1875-AK15,0),IF(ISNUMBER(AM15),480-AN15,0)) -> 51990 | AX15: =SUM(IF(ISNUMBER(C15),7200-E15,0),IF(ISNUMBER(F15),7200-H15,0),IF(ISNUMBER(I15),7200-K15,0),IF(ISNUMBER(L15),7200-N15,0),IF(ISNUMBER(O15),14400-Q15,0),IF(ISNUMBER(R15),14400-T15,0),IF(ISNUMBER(U15),7200-W15,0),IF(ISNUMBER(X15),7200-Z15,0),IF(ISNUMBER(AA15),7200-AC15,0),IF(ISNUMBER(AD15),7200-AF15,0),IF(ISNUMBER(AG15),3125-AI15,0),IF(ISNUMBER(AJ15),3125-AL15,0),IF(ISNUMBER(AM15),800-AO15,0)) -> 93450 | AY15: 100 | AZ15: =COUNTIF(C15,">=0")+COUNTIF(F15,">=0")+COUNTIF(I15,">=0")+COUNTIF(L15,">=0")+COUNTIF(O15,">=0")+COUNTIF(R15,">=0")+COUNTIF(U15,">=0")+COUNTIF(X15,">=0")+COUNTIF(AA15,">=0")+COUNTIF(AD15,">=0")+COUNTIF(AG15,">=0")+COUNTIF(AJ15,">=0")+COUNTIF(AM15,">=0") -> 13 | BA15: =COUNTIF(C15,"РЕЗЕРВ")+COUNTIF(F15,"РЕЗЕРВ")+COUNTIF(I15,"РЕЗЕРВ")+COUNTIF(L15,"РЕЗЕРВ")+COUNTIF(O15,"РЕЗЕРВ")+COUNTIF(R15,"РЕЗЕРВ")+COUNTIF(U15,"РЕЗЕРВ")+COUNTIF(X15,"РЕЗЕРВ")+COUNTIF(AA15,"РЕЗЕРВ")+COUNTIF(AD15,"РЕЗЕРВ")+COUNTIF(AG15,"РЕЗЕРВ")+COUNTIF(AJ15,"РЕЗЕРВ")+COUNTIF(AM15,"РЕЗЕРВ") -> 0 | BB15: =COUNTIF(C15,"РЕМОНТ")+COUNTIF(F15,"РЕМОНТ")+COUNTIF(I15,"РЕМОНТ")+COUNTIF(L15,"РЕМОНТ")+COUNTIF(O15,"РЕМОНТ")+COUNTIF(Q15,"РЕМОНТ")+COUNTIF(U15,"РЕМОНТ")+COUNTIF(X15,"РЕМОНТ")+COUNTIF(AA15,"РЕМОНТ")+COUNTIF(AD15,"РЕМОНТ")+COUNTIF(AG15,"РЕМОНТ")+COUNTIF(AJ15,"РЕМОНТ")+COUNTIF(AM15,"РЕМОНТ") -> 0 | BC15: =COUNTIF(C15,"ТО")+COUNTIF(F15,"ТО")+COUNTIF(I15,"ТО")+COUNTIF(L15,"ТО")+COUNTIF(O15,"ТО")+COUNTIF(R15,"ТО")+COUNTIF(U15,"ТО")+COUNTIF(X15,"ТО")+COUNTIF(AA15,"ТО")+COUNTIF(AD15,"ТО")+COUNTIF(AG15,"ТО")+COUNTIF(AJ15,"ТО")+COUNTIF(AM15,"ТО") -> 0 | BD15: 12 | BE15: =#REF! ->  | BF15: =AVERAGE(#REF!) ->  | BG15: =AVERAGE(#REF!) -> 
B16: 11:00:00 | C16: ='[2]31'!AL16 -> 0 | D16: ='[2]31'!AM16 -> 0 | E16: ='[2]31'!AN16 -> 0 | F16: ='[2]31'!AO16 -> 0 | G16: ='[2]31'!AP16 -> 0 | H16: ='[2]31'!AQ16 -> 0 | I16: ='[2]31'!AR16 -> 0 | J16: ='[2]31'!AS16 -> 0 | K16: ='[2]31'!AT16 -> 0 | L16: ='[2]31'!AU16 -> 0 | M16: ='[2]31'!AV16 -> 0 | N16: ='[2]31'!AW16 -> 0 | O16: ='[2]31'!AX16 -> 0 | P16: ='[2]31'!AY16 -> 0 | Q16: ='[2]31'!AZ16 -> 0 | R16: ='[2]31'!BA16 -> 0 | S16: ='[2]31'!BB16 -> 0 | T16: ='[2]31'!BC16 -> 0 | U16: ='[2]31'!BD16 -> 0 | V16: ='[2]31'!BE16 -> 0 | W16: ='[2]31'!BF16 -> 0 | X16: ='[2]31'!BG16 -> 0 | Y16: ='[2]31'!BH16 -> 0 | Z16: ='[2]31'!BI16 -> 0 | AA16: ='[2]31'!BJ16 -> 0 | AB16: ='[2]31'!BK16 -> 0 | AC16: ='[2]31'!BL16 -> 0 | AD16: ='[2]31'!BM16 -> 0 | AE16: ='[2]31'!BN16 -> 0 | AF16: ='[2]31'!BO16 -> 0 | AG16: ='[2]31'!BP16 -> 0 | AH16: ='[2]31'!BQ16 -> 0 | AI16: ='[2]31'!BR16 -> 0 | AJ16: ='[2]31'!BS16 -> 0 | AK16: ='[2]31'!BT16 -> 0 | AL16: ='[2]31'!BU16 -> 0 | AM16: ='[2]31'!BV16 -> 0 | AN16: ='[2]31'!BW16 -> 0 | AO16: ='[2]31'!BX16 -> 0 | AP16: =SUM(C16,F16,I16,L16,O16,R16,U16,X16,AA16,AD16,AG16,AJ16,AM16) -> 0 | AQ16: 0 | AR16: 0 | AS16: =SUM(IF(ISNUMBER(C16),IF(A16>15,-40*A16+6600,6000),0),IF(ISNUMBER(F16),IF(A16>15,-40*A16+6600,6000),0),IF(ISNUMBER(I16),IF(A16>15,-40*A16+6600,6000),0),IF(ISNUMBER(L16),IF(A16>15,-40*A16+6600,6000),0),IF(ISNUMBER(O16),IF(A16>15,-100*A16+13500,12000),0),IF(ISNUMBER(R16),IF(A16>15,-100*A16+13500,12000),0),IF(ISNUMBER(U16),IF(A16>15,-40*A16+6600,6000),0),IF(ISNUMBER(X16),IF(A16>15,-40*A16+6600,6000),0),IF(ISNUMBER(AA16),IF(A16>25,-66.7*A16+7966.7,6300),0),IF(ISNUMBER(AD16),IF(A16>25,-66.7*A16+7966.7,6300),0),IF(ISNUMBER(AG16),1500,0),IF(ISNUMBER(AM16),640,0),IF(ISNUMBER(AJ16),1500,0)) -> 76240 | AT16: =AP16*100/(SUM(IF(ISNUMBER(C16),6000,0),IF(ISNUMBER(F16),6000,0),IF(ISNUMBER(I16),6000,0),IF(ISNUMBER(L16),6000,0),IF(ISNUMBER(O16),12000,0),IF(ISNUMBER(R16),12000,0),IF(ISNUMBER(U16),6000,0),IF(ISNUMBER(X16),6000,0),IF(ISNUMBER(AA16),6000,0),IF(ISNUMBER(AD16),6000,0),IF(ISNUMBER(AG16),2500,0),IF(ISNUMBER(AM16),640,0),IF(ISNUMBER(AJ16),2500,0))) -> 0 | AU16: 0 | AV16: 76240 | AW16: =SUM(IF(ISNUMBER(C16),3980-D16,0),IF(ISNUMBER(F16),3980-G16,0),IF(ISNUMBER(I16),3980-J16,0),IF(ISNUMBER(L16),3980-M16,0),IF(ISNUMBER(O16),7960-P16,0),IF(ISNUMBER(R16),7960-S16,0),IF(ISNUMBER(U16),3980-V16,0),IF(ISNUMBER(X16),3980-Y16,0),IF(ISNUMBER(AA16),3980-AB16,0),IF(ISNUMBER(AD16),3980-AE16,0),IF(ISNUMBER(AG16),1875-AH16,0),IF(ISNUMBER(AJ16),1875-AK16,0),IF(ISNUMBER(AM16),480-AN16,0)) -> 51990 | AX16: =SUM(IF(ISNUMBER(C16),7200-E16,0),IF(ISNUMBER(F16),7200-H16,0),IF(ISNUMBER(I16),7200-K16,0),IF(ISNUMBER(L16),7200-N16,0),IF(ISNUMBER(O16),14400-Q16,0),IF(ISNUMBER(R16),14400-T16,0),IF(ISNUMBER(U16),7200-W16,0),IF(ISNUMBER(X16),7200-Z16,0),IF(ISNUMBER(AA16),7200-AC16,0),IF(ISNUMBER(AD16),7200-AF16,0),IF(ISNUMBER(AG16),3125-AI16,0),IF(ISNUMBER(AJ16),3125-AL16,0),IF(ISNUMBER(AM16),800-AO16,0)) -> 93450 | AY16: 100 | AZ16: =COUNTIF(C16,">=0")+COUNTIF(F16,">=0")+COUNTIF(I16,">=0")+COUNTIF(L16,">=0")+COUNTIF(O16,">=0")+COUNTIF(R16,">=0")+COUNTIF(U16,">=0")+COUNTIF(X16,">=0")+COUNTIF(AA16,">=0")+COUNTIF(AD16,">=0")+COUNTIF(AG16,">=0")+COUNTIF(AJ16,">=0")+COUNTIF(AM16,">=0") -> 13 | BA16: =COUNTIF(C16,"РЕЗЕРВ")+COUNTIF(F16,"РЕЗЕРВ")+COUNTIF(I16,"РЕЗЕРВ")+COUNTIF(L16,"РЕЗЕРВ")+COUNTIF(O16,"РЕЗЕРВ")+COUNTIF(R16,"РЕЗЕРВ")+COUNTIF(U16,"РЕЗЕРВ")+COUNTIF(X16,"РЕЗЕРВ")+COUNTIF(AA16,"РЕЗЕРВ")+COUNTIF(AD16,"РЕЗЕРВ")+COUNTIF(AG16,"РЕЗЕРВ")+COUNTIF(AJ16,"РЕЗЕРВ")+COUNTIF(AM16,"РЕЗЕРВ") -> 0 | BB16: =COUNTIF(C16,"РЕМОНТ")+COUNTIF(F16,"РЕМОНТ")+COUNTIF(I16,"РЕМОНТ")+COUNTIF(L16,"РЕМОНТ")+COUNTIF(O16,"РЕМОНТ")+COUNTIF(Q16,"РЕМОНТ")+COUNTIF(U16,"РЕМОНТ")+COUNTIF(X16,"РЕМОНТ")+COUNTIF(AA16,"РЕМОНТ")+COUNTIF(AD16,"РЕМОНТ")+COUNTIF(AG16,"РЕМОНТ")+COUNTIF(AJ16,"РЕМОНТ")+COUNTIF(AM16,"РЕМОНТ") -> 0 | BC16: =COUNTIF(C16,"ТО")+COUNTIF(F16,"ТО")+COUNTIF(I16,"ТО")+COUNTIF(L16,"ТО")+COUNTIF(O16,"ТО")+COUNTIF(R16,"ТО")+COUNTIF(U16,"ТО")+COUNTIF(X16,"ТО")+COUNTIF(AA16,"ТО")+COUNTIF(AD16,"ТО")+COUNTIF(AG16,"ТО")+COUNTIF(AJ16,"ТО")+COUNTIF(AM16,"ТО") -> 0 | BD16: 13 | BE16: =#REF! ->  | BF16: =AVERAGE(#REF!) ->  | BG16: =AVERAGE(#REF!) -> 
B17: 12:00:00 | C17: ='[2]31'!AL17 -> 0 | D17: ='[2]31'!AM17 -> 0 | E17: ='[2]31'!AN17 -> 0 | F17: ='[2]31'!AO17 -> 0 | G17: ='[2]31'!AP17 -> 0 | H17: ='[2]31'!AQ17 -> 0 | I17: ='[2]31'!AR17 -> 0 | J17: ='[2]31'!AS17 -> 0 | K17: ='[2]31'!AT17 -> 0 | L17: ='[2]31'!AU17 -> 0 | M17: ='[2]31'!AV17 -> 0 | N17: ='[2]31'!AW17 -> 0 | O17: ='[2]31'!AX17 -> 0 | P17: ='[2]31'!AY17 -> 0 | Q17: ='[2]31'!AZ17 -> 0 | R17: ='[2]31'!BA17 -> 0 | S17: ='[2]31'!BB17 -> 0 | T17: ='[2]31'!BC17 -> 0 | U17: ='[2]31'!BD17 -> 0 | V17: ='[2]31'!BE17 -> 0 | W17: ='[2]31'!BF17 -> 0 | X17: ='[2]31'!BG17 -> 0 | Y17: ='[2]31'!BH17 -> 0 | Z17: ='[2]31'!BI17 -> 0 | AA17: ='[2]31'!BJ17 -> 0 | AB17: ='[2]31'!BK17 -> 0 | AC17: ='[2]31'!BL17 -> 0 | AD17: ='[2]31'!BM17 -> 0 | AE17: ='[2]31'!BN17 -> 0 | AF17: ='[2]31'!BO17 -> 0 | AG17: ='[2]31'!BP17 -> 0 | AH17: ='[2]31'!BQ17 -> 0 | AI17: ='[2]31'!BR17 -> 0 | AJ17: ='[2]31'!BS17 -> 0 | AK17: ='[2]31'!BT17 -> 0 | AL17: ='[2]31'!BU17 -> 0 | AM17: ='[2]31'!BV17 -> 0 | AN17: ='[2]31'!BW17 -> 0 | AO17: ='[2]31'!BX17 -> 0 | AP17: 0 | AQ17: 0 | AR17: 0 | AS17: 76240 | AT17: 0 | AU17: 0 | AV17: 76240 | AW17: 51990 | AX17: 93450 | AY17: 100 | AZ17: 13 | BA17: 0 | BB17: 0 | BC17: 0 | BD17: 14 | BE17: =#REF! ->  | BF17: =AVERAGE(#REF!) ->  | BG17: =AVERAGE(#REF!) -> 
B18: 13:00:00 | C18: ='[2]31'!AL18 -> 0 | D18: ='[2]31'!AM18 -> 0 | E18: ='[2]31'!AN18 -> 0 | F18: ='[2]31'!AO18 -> 0 | G18: ='[2]31'!AP18 -> 0 | H18: ='[2]31'!AQ18 -> 0 | I18: ='[2]31'!AR18 -> 0 | J18: ='[2]31'!AS18 -> 0 | K18: ='[2]31'!AT18 -> 0 | L18: ='[2]31'!AU18 -> 0 | M18: ='[2]31'!AV18 -> 0 | N18: ='[2]31'!AW18 -> 0 | O18: ='[2]31'!AX18 -> 0 | P18: ='[2]31'!AY18 -> 0 | Q18: ='[2]31'!AZ18 -> 0 | R18: ='[2]31'!BA18 -> 0 | S18: ='[2]31'!BB18 -> 0 | T18: ='[2]31'!BC18 -> 0 | U18: ='[2]31'!BD18 -> 0 | V18: ='[2]31'!BE18 -> 0 | W18: ='[2]31'!BF18 -> 0 | X18: ='[2]31'!BG18 -> 0 | Y18: ='[2]31'!BH18 -> 0 | Z18: ='[2]31'!BI18 -> 0 | AA18: ='[2]31'!BJ18 -> 0 | AB18: ='[2]31'!BK18 -> 0 | AC18: ='[2]31'!BL18 -> 0 | AD18: ='[2]31'!BM18 -> 0 | AE18: ='[2]31'!BN18 -> 0 | AF18: ='[2]31'!BO18 -> 0 | AG18: ='[2]31'!BP18 -> 0 | AH18: ='[2]31'!BQ18 -> 0 | AI18: ='[2]31'!BR18 -> 0 | AJ18: ='[2]31'!BS18 -> 0 | AK18: ='[2]31'!BT18 -> 0 | AL18: ='[2]31'!BU18 -> 0 | AM18: ='[2]31'!BV18 -> 0 | AN18: ='[2]31'!BW18 -> 0 | AO18: ='[2]31'!BX18 -> 0 | AP18: =SUM(C18,F18,I18,L18,O18,R18,U18,X18,AA18,AD18,AG18,AJ18,AM18) -> 0 | AQ18: 0 | AR18: 0 | AS18: =SUM(IF(ISNUMBER(C18),IF(A18>15,-40*A18+6600,6000),0),IF(ISNUMBER(F18),IF(A18>15,-40*A18+6600,6000),0),IF(ISNUMBER(I18),IF(A18>15,-40*A18+6600,6000),0),IF(ISNUMBER(L18),IF(A18>15,-40*A18+6600,6000),0),IF(ISNUMBER(O18),IF(A18>15,-100*A18+13500,12000),0),IF(ISNUMBER(R18),IF(A18>15,-100*A18+13500,12000),0),IF(ISNUMBER(U18),IF(A18>15,-40*A18+6600,6000),0),IF(ISNUMBER(X18),IF(A18>15,-40*A18+6600,6000),0),IF(ISNUMBER(AA18),IF(A18>25,-66.7*A18+7966.7,6300),0),IF(ISNUMBER(AD18),IF(A18>25,-66.7*A18+7966.7,6300),0),IF(ISNUMBER(AG18),1500,0),IF(ISNUMBER(AM18),640,0),IF(ISNUMBER(AJ18),1500,0)) -> 76240 | AT18: =AP18*100/(SUM(IF(ISNUMBER(C18),6000,0),IF(ISNUMBER(F18),6000,0),IF(ISNUMBER(I18),6000,0),IF(ISNUMBER(L18),6000,0),IF(ISNUMBER(O18),12000,0),IF(ISNUMBER(R18),12000,0),IF(ISNUMBER(U18),6000,0),IF(ISNUMBER(X18),6000,0),IF(ISNUMBER(AA18),6000,0),IF(ISNUMBER(AD18),6000,0),IF(ISNUMBER(AG18),2500,0),IF(ISNUMBER(AM18),640,0),IF(ISNUMBER(AJ18),2500,0))) -> 0 | AU18: 0 | AV18: 76240 | AW18: =SUM(IF(ISNUMBER(C18),3980-D18,0),IF(ISNUMBER(F18),3980-G18,0),IF(ISNUMBER(I18),3980-J18,0),IF(ISNUMBER(L18),3980-M18,0),IF(ISNUMBER(O18),7960-P18,0),IF(ISNUMBER(R18),7960-S18,0),IF(ISNUMBER(U18),3980-V18,0),IF(ISNUMBER(X18),3980-Y18,0),IF(ISNUMBER(AA18),3980-AB18,0),IF(ISNUMBER(AD18),3980-AE18,0),IF(ISNUMBER(AG18),1875-AH18,0),IF(ISNUMBER(AJ18),1875-AK18,0),IF(ISNUMBER(AM18),480-AN18,0)) -> 51990 | AX18: =SUM(IF(ISNUMBER(C18),7200-E18,0),IF(ISNUMBER(F18),7200-H18,0),IF(ISNUMBER(I18),7200-K18,0),IF(ISNUMBER(L18),7200-N18,0),IF(ISNUMBER(O18),14400-Q18,0),IF(ISNUMBER(R18),14400-T18,0),IF(ISNUMBER(U18),7200-W18,0),IF(ISNUMBER(X18),7200-Z18,0),IF(ISNUMBER(AA18),7200-AC18,0),IF(ISNUMBER(AD18),7200-AF18,0),IF(ISNUMBER(AG18),3125-AI18,0),IF(ISNUMBER(AJ18),3125-AL18,0),IF(ISNUMBER(AM18),800-AO18,0)) -> 93450 | AY18: 100 | AZ18: =COUNTIF(C18,">=0")+COUNTIF(F18,">=0")+COUNTIF(I18,">=0")+COUNTIF(L18,">=0")+COUNTIF(O18,">=0")+COUNTIF(R18,">=0")+COUNTIF(U18,">=0")+COUNTIF(X18,">=0")+COUNTIF(AA18,">=0")+COUNTIF(AD18,">=0")+COUNTIF(AG18,">=0")+COUNTIF(AJ18,">=0")+COUNTIF(AM18,">=0") -> 13 | BA18: =COUNTIF(C18,"РЕЗЕРВ")+COUNTIF(F18,"РЕЗЕРВ")+COUNTIF(I18,"РЕЗЕРВ")+COUNTIF(L18,"РЕЗЕРВ")+COUNTIF(O18,"РЕЗЕРВ")+COUNTIF(R18,"РЕЗЕРВ")+COUNTIF(U18,"РЕЗЕРВ")+COUNTIF(X18,"РЕЗЕРВ")+COUNTIF(AA18,"РЕЗЕРВ")+COUNTIF(AD18,"РЕЗЕРВ")+COUNTIF(AG18,"РЕЗЕРВ")+COUNTIF(AJ18,"РЕЗЕРВ")+COUNTIF(AM18,"РЕЗЕРВ") -> 0 | BB18: =COUNTIF(C18,"РЕМОНТ")+COUNTIF(F18,"РЕМОНТ")+COUNTIF(I18,"РЕМОНТ")+COUNTIF(L18,"РЕМОНТ")+COUNTIF(O18,"РЕМОНТ")+COUNTIF(Q18,"РЕМОНТ")+COUNTIF(U18,"РЕМОНТ")+COUNTIF(X18,"РЕМОНТ")+COUNTIF(AA18,"РЕМОНТ")+COUNTIF(AD18,"РЕМОНТ")+COUNTIF(AG18,"РЕМОНТ")+COUNTIF(AJ18,"РЕМОНТ")+COUNTIF(AM18,"РЕМОНТ") -> 0 | BC18: =COUNTIF(C18,"ТО")+COUNTIF(F18,"ТО")+COUNTIF(I18,"ТО")+COUNTIF(L18,"ТО")+COUNTIF(O18,"ТО")+COUNTIF(R18,"ТО")+COUNTIF(U18,"ТО")+COUNTIF(X18,"ТО")+COUNTIF(AA18,"ТО")+COUNTIF(AD18,"ТО")+COUNTIF(AG18,"ТО")+COUNTIF(AJ18,"ТО")+COUNTIF(AM18,"ТО") -> 0 | BD18: 15 | BE18: =#REF! ->  | BF18: =AVERAGE(#REF!) ->  | BG18: =AVERAGE(#REF!) -> 
B19: 14:00:00 | C19: ='[2]31'!AL19 -> 0 | D19: ='[2]31'!AM19 -> 0 | E19: ='[2]31'!AN19 -> 0 | F19: ='[2]31'!AO19 -> 0 | G19: ='[2]31'!AP19 -> 0 | H19: ='[2]31'!AQ19 -> 0 | I19: ='[2]31'!AR19 -> 0 | J19: ='[2]31'!AS19 -> 0 | K19: ='[2]31'!AT19 -> 0 | L19: ='[2]31'!AU19 -> 0 | M19: ='[2]31'!AV19 -> 0 | N19: ='[2]31'!AW19 -> 0 | O19: ='[2]31'!AX19 -> 0 | P19: ='[2]31'!AY19 -> 0 | Q19: ='[2]31'!AZ19 -> 0 | R19: ='[2]31'!BA19 -> 0 | S19: ='[2]31'!BB19 -> 0 | T19: ='[2]31'!BC19 -> 0 | U19: ='[2]31'!BD19 -> 0 | V19: ='[2]31'!BE19 -> 0 | W19: ='[2]31'!BF19 -> 0 | X19: ='[2]31'!BG19 -> 0 | Y19: ='[2]31'!BH19 -> 0 | Z19: ='[2]31'!BI19 -> 0 | AA19: ='[2]31'!BJ19 -> 0 | AB19: ='[2]31'!BK19 -> 0 | AC19: ='[2]31'!BL19 -> 0 | AD19: ='[2]31'!BM19 -> 0 | AE19: ='[2]31'!BN19 -> 0 | AF19: ='[2]31'!BO19 -> 0 | AG19: ='[2]31'!BP19 -> 0 | AH19: ='[2]31'!BQ19 -> 0 | AI19: ='[2]31'!BR19 -> 0 | AJ19: ='[2]31'!BS19 -> 0 | AK19: ='[2]31'!BT19 -> 0 | AL19: ='[2]31'!BU19 -> 0 | AM19: ='[2]31'!BV19 -> 0 | AN19: ='[2]31'!BW19 -> 0 | AO19: ='[2]31'!BX19 -> 0 | AP19: 0 | AQ19: 0 | AR19: 0 | AS19: 76240 | AT19: 0 | AU19: 0 | AV19: 76240 | AW19: 51990 | AX19: 93450 | AY19: 100 | AZ19: 13 | BA19: 0 | BB19: 0 | BC19: 0 | BD19: 16 | BE19: =#REF! ->  | BF19: =AVERAGE(#REF!) ->  | BG19: =AVERAGE(#REF!) -> 
B20: 15:00:00 | C20: ='[2]31'!AL20 -> 0 | D20: ='[2]31'!AM20 -> 0 | E20: ='[2]31'!AN20 -> 0 | F20: ='[2]31'!AO20 -> 0 | G20: ='[2]31'!AP20 -> 0 | H20: ='[2]31'!AQ20 -> 0 | I20: ='[2]31'!AR20 -> 0 | J20: ='[2]31'!AS20 -> 0 | K20: ='[2]31'!AT20 -> 0 | L20: ='[2]31'!AU20 -> 0 | M20: ='[2]31'!AV20 -> 0 | N20: ='[2]31'!AW20 -> 0 | O20: ='[2]31'!AX20 -> 0 | P20: ='[2]31'!AY20 -> 0 | Q20: ='[2]31'!AZ20 -> 0 | R20: ='[2]31'!BA20 -> 0 | S20: ='[2]31'!BB20 -> 0 | T20: ='[2]31'!BC20 -> 0 | U20: ='[2]31'!BD20 -> 0 | V20: ='[2]31'!BE20 -> 0 | W20: ='[2]31'!BF20 -> 0 | X20: ='[2]31'!BG20 -> 0 | Y20: ='[2]31'!BH20 -> 0 | Z20: ='[2]31'!BI20 -> 0 | AA20: ='[2]31'!BJ20 -> 0 | AB20: ='[2]31'!BK20 -> 0 | AC20: ='[2]31'!BL20 -> 0 | AD20: ='[2]31'!BM20 -> 0 | AE20: ='[2]31'!BN20 -> 0 | AF20: ='[2]31'!BO20 -> 0 | AG20: ='[2]31'!BP20 -> 0 | AH20: ='[2]31'!BQ20 -> 0 | AI20: ='[2]31'!BR20 -> 0 | AJ20: ='[2]31'!BS20 -> 0 | AK20: ='[2]31'!BT20 -> 0 | AL20: ='[2]31'!BU20 -> 0 | AM20: ='[2]31'!BV20 -> 0 | AN20: ='[2]31'!BW20 -> 0 | AO20: ='[2]31'!BX20 -> 0 | AP20: 0 | AQ20: 0 | AR20: 0 | AS20: 76240 | AT20: 0 | AU20: 0 | AV20: 76240 | AW20: 51990 | AX20: 93450 | AY20: 100 | AZ20: 13 | BA20: 0 | BB20: 0 | BC20: 0 | BD20: 17 | BE20: =#REF! ->  | BF20: =AVERAGE(#REF!) ->  | BG20: =AVERAGE(#REF!) -> 
B21: 16:00:00 | C21: ='[2]31'!AL21 -> 0 | D21: ='[2]31'!AM21 -> 0 | E21: ='[2]31'!AN21 -> 0 | F21: ='[2]31'!AO21 -> 0 | G21: ='[2]31'!AP21 -> 0 | H21: ='[2]31'!AQ21 -> 0 | I21: ='[2]31'!AR21 -> 0 | J21: ='[2]31'!AS21 -> 0 | K21: ='[2]31'!AT21 -> 0 | L21: ='[2]31'!AU21 -> 0 | M21: ='[2]31'!AV21 -> 0 | N21: ='[2]31'!AW21 -> 0 | O21: ='[2]31'!AX21 -> 0 | P21: ='[2]31'!AY21 -> 0 | Q21: ='[2]31'!AZ21 -> 0 | R21: ='[2]31'!BA21 -> 0 | S21: ='[2]31'!BB21 -> 0 | T21: ='[2]31'!BC21 -> 0 | U21: ='[2]31'!BD21 -> 0 | V21: ='[2]31'!BE21 -> 0 | W21: ='[2]31'!BF21 -> 0 | X21: ='[2]31'!BG21 -> 0 | Y21: ='[2]31'!BH21 -> 0 | Z21: ='[2]31'!BI21 -> 0 | AA21: ='[2]31'!BJ21 -> 0 | AB21: ='[2]31'!BK21 -> 0 | AC21: ='[2]31'!BL21 -> 0 | AD21: ='[2]31'!BM21 -> 0 | AE21: ='[2]31'!BN21 -> 0 | AF21: ='[2]31'!BO21 -> 0 | AG21: ='[2]31'!BP21 -> 0 | AH21: ='[2]31'!BQ21 -> 0 | AI21: ='[2]31'!BR21 -> 0 | AJ21: ='[2]31'!BS21 -> 0 | AK21: ='[2]31'!BT21 -> 0 | AL21: ='[2]31'!BU21 -> 0 | AM21: ='[2]31'!BV21 -> 0 | AN21: ='[2]31'!BW21 -> 0 | AO21: ='[2]31'!BX21 -> 0 | AP21: 0 | AQ21: 0 | AR21: 0 | AS21: 76240 | AT21: 0 | AU21: 0 | AV21: 76240 | AW21: 51990 | AX21: 93450 | AY21: 100 | AZ21: 13 | BA21: 0 | BB21: 0 | BC21: 0 | BD21: 18 | BE21: =#REF! ->  | BF21: =AVERAGE(#REF!) ->  | BG21: =AVERAGE(#REF!) -> 
B22: 17:00:00 | C22: ='[2]31'!AL22 -> 0 | D22: ='[2]31'!AM22 -> 0 | E22: ='[2]31'!AN22 -> 0 | F22: ='[2]31'!AO22 -> 0 | G22: ='[2]31'!AP22 -> 0 | H22: ='[2]31'!AQ22 -> 0 | I22: ='[2]31'!AR22 -> 0 | J22: ='[2]31'!AS22 -> 0 | K22: ='[2]31'!AT22 -> 0 | L22: ='[2]31'!AU22 -> 0 | M22: ='[2]31'!AV22 -> 0 | N22: ='[2]31'!AW22 -> 0 | O22: ='[2]31'!AX22 -> 0 | P22: ='[2]31'!AY22 -> 0 | Q22: ='[2]31'!AZ22 -> 0 | R22: ='[2]31'!BA22 -> 0 | S22: ='[2]31'!BB22 -> 0 | T22: ='[2]31'!BC22 -> 0 | U22: ='[2]31'!BD22 -> 0 | V22: ='[2]31'!BE22 -> 0 | W22: ='[2]31'!BF22 -> 0 | X22: ='[2]31'!BG22 -> 0 | Y22: ='[2]31'!BH22 -> 0 | Z22: ='[2]31'!BI22 -> 0 | AA22: ='[2]31'!BJ22 -> 0 | AB22: ='[2]31'!BK22 -> 0 | AC22: ='[2]31'!BL22 -> 0 | AD22: ='[2]31'!BM22 -> 0 | AE22: ='[2]31'!BN22 -> 0 | AF22: ='[2]31'!BO22 -> 0 | AG22: ='[2]31'!BP22 -> 0 | AH22: ='[2]31'!BQ22 -> 0 | AI22: ='[2]31'!BR22 -> 0 | AJ22: ='[2]31'!BS22 -> 0 | AK22: ='[2]31'!BT22 -> 0 | AL22: ='[2]31'!BU22 -> 0 | AM22: ='[2]31'!BV22 -> 0 | AN22: ='[2]31'!BW22 -> 0 | AO22: ='[2]31'!BX22 -> 0 | AP22: 0 | AQ22: 0 | AR22: 0 | AS22: 76240 | AT22: 0 | AU22: 0 | AV22: 76240 | AW22: 51990 | AX22: 93450 | AY22: 100 | AZ22: 13 | BA22: 0 | BB22: 0 | BC22: 0 | BD22: 19 | BE22: =#REF! ->  | BF22: =AVERAGE(#REF!) ->  | BG22: =AVERAGE(#REF!) -> 
B23: 18:00:00 | C23: ='[2]31'!AL23 -> 0 | D23: ='[2]31'!AM23 -> 0 | E23: ='[2]31'!AN23 -> 0 | F23: ='[2]31'!AO23 -> 0 | G23: ='[2]31'!AP23 -> 0 | H23: ='[2]31'!AQ23 -> 0 | I23: ='[2]31'!AR23 -> 0 | J23: ='[2]31'!AS23 -> 0 | K23: ='[2]31'!AT23 -> 0 | L23: ='[2]31'!AU23 -> 0 | M23: ='[2]31'!AV23 -> 0 | N23: ='[2]31'!AW23 -> 0 | O23: ='[2]31'!AX23 -> 0 | P23: ='[2]31'!AY23 -> 0 | Q23: ='[2]31'!AZ23 -> 0 | R23: ='[2]31'!BA23 -> 0 | S23: ='[2]31'!BB23 -> 0 | T23: ='[2]31'!BC23 -> 0 | U23: ='[2]31'!BD23 -> 0 | V23: ='[2]31'!BE23 -> 0 | W23: ='[2]31'!BF23 -> 0 | X23: ='[2]31'!BG23 -> 0 | Y23: ='[2]31'!BH23 -> 0 | Z23: ='[2]31'!BI23 -> 0 | AA23: ='[2]31'!BJ23 -> 0 | AB23: ='[2]31'!BK23 -> 0 | AC23: ='[2]31'!BL23 -> 0 | AD23: ='[2]31'!BM23 -> 0 | AE23: ='[2]31'!BN23 -> 0 | AF23: ='[2]31'!BO23 -> 0 | AG23: ='[2]31'!BP23 -> 0 | AH23: ='[2]31'!BQ23 -> 0 | AI23: ='[2]31'!BR23 -> 0 | AJ23: ='[2]31'!BS23 -> 0 | AK23: ='[2]31'!BT23 -> 0 | AL23: ='[2]31'!BU23 -> 0 | AM23: ='[2]31'!BV23 -> 0 | AN23: ='[2]31'!BW23 -> 0 | AO23: ='[2]31'!BX23 -> 0 | AP23: 0 | AQ23: 0 | AR23: 0 | AS23: 76240 | AT23: 0 | AU23: 0 | AV23: 76240 | AW23: 51990 | AX23: 93450 | AY23: 100 | AZ23: 13 | BA23: 0 | BB23: 0 | BC23: 0 | BD23: 20 | BE23: =#REF! ->  | BF23: =AVERAGE(#REF!) ->  | BG23: =AVERAGE(#REF!) -> 
B24: 19:00:00 | C24: ='[2]31'!AL24 -> 0 | D24: ='[2]31'!AM24 -> 0 | E24: ='[2]31'!AN24 -> 0 | F24: ='[2]31'!AO24 -> 0 | G24: ='[2]31'!AP24 -> 0 | H24: ='[2]31'!AQ24 -> 0 | I24: ='[2]31'!AR24 -> 0 | J24: ='[2]31'!AS24 -> 0 | K24: ='[2]31'!AT24 -> 0 | L24: ='[2]31'!AU24 -> 0 | M24: ='[2]31'!AV24 -> 0 | N24: ='[2]31'!AW24 -> 0 | O24: ='[2]31'!AX24 -> 0 | P24: ='[2]31'!AY24 -> 0 | Q24: ='[2]31'!AZ24 -> 0 | R24: ='[2]31'!BA24 -> 0 | S24: ='[2]31'!BB24 -> 0 | T24: ='[2]31'!BC24 -> 0 | U24: ='[2]31'!BD24 -> 0 | V24: ='[2]31'!BE24 -> 0 | W24: ='[2]31'!BF24 -> 0 | X24: ='[2]31'!BG24 -> 0 | Y24: ='[2]31'!BH24 -> 0 | Z24: ='[2]31'!BI24 -> 0 | AA24: ='[2]31'!BJ24 -> 0 | AB24: ='[2]31'!BK24 -> 0 | AC24: ='[2]31'!BL24 -> 0 | AD24: ='[2]31'!BM24 -> 0 | AE24: ='[2]31'!BN24 -> 0 | AF24: ='[2]31'!BO24 -> 0 | AG24: ='[2]31'!BP24 -> 0 | AH24: ='[2]31'!BQ24 -> 0 | AI24: ='[2]31'!BR24 -> 0 | AJ24: ='[2]31'!BS24 -> 0 | AK24: ='[2]31'!BT24 -> 0 | AL24: ='[2]31'!BU24 -> 0 | AM24: ='[2]31'!BV24 -> 0 | AN24: ='[2]31'!BW24 -> 0 | AO24: ='[2]31'!BX24 -> 0 | AP24: 0 | AQ24: 0 | AR24: 0 | AS24: 76240 | AT24: 0 | AU24: 0 | AV24: 76240 | AW24: 51990 | AX24: 93450 | AY24: 100 | AZ24: 13 | BA24: 0 | BB24: 0 | BC24: 0 | BD24: 21 | BE24: =#REF! ->  | BF24: =AVERAGE(#REF!) ->  | BG24: =AVERAGE(#REF!) -> 
B25: 20:00:00 | C25: ='[2]31'!AL25 -> 0 | D25: ='[2]31'!AM25 -> 0 | E25: ='[2]31'!AN25 -> 0 | F25: ='[2]31'!AO25 -> 0 | G25: ='[2]31'!AP25 -> 0 | H25: ='[2]31'!AQ25 -> 0 | I25: ='[2]31'!AR25 -> 0 | J25: ='[2]31'!AS25 -> 0 | K25: ='[2]31'!AT25 -> 0 | L25: ='[2]31'!AU25 -> 0 | M25: ='[2]31'!AV25 -> 0 | N25: ='[2]31'!AW25 -> 0 | O25: ='[2]31'!AX25 -> 0 | P25: ='[2]31'!AY25 -> 0 | Q25: ='[2]31'!AZ25 -> 0 | R25: ='[2]31'!BA25 -> 0 | S25: ='[2]31'!BB25 -> 0 | T25: ='[2]31'!BC25 -> 0 | U25: ='[2]31'!BD25 -> 0 | V25: ='[2]31'!BE25 -> 0 | W25: ='[2]31'!BF25 -> 0 | X25: ='[2]31'!BG25 -> 0 | Y25: ='[2]31'!BH25 -> 0 | Z25: ='[2]31'!BI25 -> 0 | AA25: ='[2]31'!BJ25 -> 0 | AB25: ='[2]31'!BK25 -> 0 | AC25: ='[2]31'!BL25 -> 0 | AD25: ='[2]31'!BM25 -> 0 | AE25: ='[2]31'!BN25 -> 0 | AF25: ='[2]31'!BO25 -> 0 | AG25: ='[2]31'!BP25 -> 0 | AH25: ='[2]31'!BQ25 -> 0 | AI25: ='[2]31'!BR25 -> 0 | AJ25: ='[2]31'!BS25 -> 0 | AK25: ='[2]31'!BT25 -> 0 | AL25: ='[2]31'!BU25 -> 0 | AM25: ='[2]31'!BV25 -> 0 | AN25: ='[2]31'!BW25 -> 0 | AO25: ='[2]31'!BX25 -> 0 | AP25: 0 | AQ25: 0 | AR25: 0 | AS25: 76240 | AT25: 0 | AU25: 0 | AV25: 76240 | AW25: 51990 | AX25: 93450 | AY25: 100 | AZ25: 13 | BA25: 0 | BB25: 0 | BC25: 0 | BD25: 22 | BE25: =#REF! ->  | BF25: =AVERAGE(#REF!) ->  | BG25: =AVERAGE(#REF!) -> 
B26: 21:00:00 | C26: ='[2]31'!AL26 -> 0 | D26: ='[2]31'!AM26 -> 0 | E26: ='[2]31'!AN26 -> 0 | F26: ='[2]31'!AO26 -> 0 | G26: ='[2]31'!AP26 -> 0 | H26: ='[2]31'!AQ26 -> 0 | I26: ='[2]31'!AR26 -> 0 | J26: ='[2]31'!AS26 -> 0 | K26: ='[2]31'!AT26 -> 0 | L26: ='[2]31'!AU26 -> 0 | M26: ='[2]31'!AV26 -> 0 | N26: ='[2]31'!AW26 -> 0 | O26: ='[2]31'!AX26 -> 0 | P26: ='[2]31'!AY26 -> 0 | Q26: ='[2]31'!AZ26 -> 0 | R26: ='[2]31'!BA26 -> 0 | S26: ='[2]31'!BB26 -> 0 | T26: ='[2]31'!BC26 -> 0 | U26: ='[2]31'!BD26 -> 0 | V26: ='[2]31'!BE26 -> 0 | W26: ='[2]31'!BF26 -> 0 | X26: ='[2]31'!BG26 -> 0 | Y26: ='[2]31'!BH26 -> 0 | Z26: ='[2]31'!BI26 -> 0 | AA26: ='[2]31'!BJ26 -> 0 | AB26: ='[2]31'!BK26 -> 0 | AC26: ='[2]31'!BL26 -> 0 | AD26: ='[2]31'!BM26 -> 0 | AE26: ='[2]31'!BN26 -> 0 | AF26: ='[2]31'!BO26 -> 0 | AG26: ='[2]31'!BP26 -> 0 | AH26: ='[2]31'!BQ26 -> 0 | AI26: ='[2]31'!BR26 -> 0 | AJ26: ='[2]31'!BS26 -> 0 | AK26: ='[2]31'!BT26 -> 0 | AL26: ='[2]31'!BU26 -> 0 | AM26: ='[2]31'!BV26 -> 0 | AN26: ='[2]31'!BW26 -> 0 | AO26: ='[2]31'!BX26 -> 0 | AP26: 0 | AQ26: 0 | AR26: 0 | AS26: 76240 | AT26: 0 | AU26: 0 | AV26: 76240 | AW26: 51990 | AX26: 93450 | AY26: 100 | AZ26: 13 | BA26: 0 | BB26: 0 | BC26: 0 | BD26: 23 | BE26: =#REF! ->  | BF26: =AVERAGE(#REF!) ->  | BG26: =AVERAGE(#REF!) -> 
B27: 22:00:00 | C27: ='[2]31'!AL27 -> 0 | D27: ='[2]31'!AM27 -> 0 | E27: ='[2]31'!AN27 -> 0 | F27: ='[2]31'!AO27 -> 0 | G27: ='[2]31'!AP27 -> 0 | H27: ='[2]31'!AQ27 -> 0 | I27: ='[2]31'!AR27 -> 0 | J27: ='[2]31'!AS27 -> 0 | K27: ='[2]31'!AT27 -> 0 | L27: ='[2]31'!AU27 -> 0 | M27: ='[2]31'!AV27 -> 0 | N27: ='[2]31'!AW27 -> 0 | O27: ='[2]31'!AX27 -> 0 | P27: ='[2]31'!AY27 -> 0 | Q27: ='[2]31'!AZ27 -> 0 | R27: ='[2]31'!BA27 -> 0 | S27: ='[2]31'!BB27 -> 0 | T27: ='[2]31'!BC27 -> 0 | U27: ='[2]31'!BD27 -> 0 | V27: ='[2]31'!BE27 -> 0 | W27: ='[2]31'!BF27 -> 0 | X27: ='[2]31'!BG27 -> 0 | Y27: ='[2]31'!BH27 -> 0 | Z27: ='[2]31'!BI27 -> 0 | AA27: ='[2]31'!BJ27 -> 0 | AB27: ='[2]31'!BK27 -> 0 | AC27: ='[2]31'!BL27 -> 0 | AD27: ='[2]31'!BM27 -> 0 | AE27: ='[2]31'!BN27 -> 0 | AF27: ='[2]31'!BO27 -> 0 | AG27: ='[2]31'!BP27 -> 0 | AH27: ='[2]31'!BQ27 -> 0 | AI27: ='[2]31'!BR27 -> 0 | AJ27: ='[2]31'!BS27 -> 0 | AK27: ='[2]31'!BT27 -> 0 | AL27: ='[2]31'!BU27 -> 0 | AM27: ='[2]31'!BV27 -> 0 | AN27: ='[2]31'!BW27 -> 0 | AO27: ='[2]31'!BX27 -> 0 | AP27: 0 | AQ27: 0 | AR27: 0 | AS27: 76240 | AT27: 0 | AU27: 0 | AV27: 76240 | AW27: 51990 | AX27: 93450 | AY27: 100 | AZ27: 13 | BA27: 0 | BB27: 0 | BC27: 0 | BD27: 24 | BE27: =#REF! ->  | BF27: =AVERAGE(#REF!) ->  | BG27: =AVERAGE(#REF!) -> 
B28: 23:00:00 | C28: ='[2]31'!AL28 -> 0 | D28: ='[2]31'!AM28 -> 0 | E28: ='[2]31'!AN28 -> 0 | F28: ='[2]31'!AO28 -> 0 | G28: ='[2]31'!AP28 -> 0 | H28: ='[2]31'!AQ28 -> 0 | I28: ='[2]31'!AR28 -> 0 | J28: ='[2]31'!AS28 -> 0 | K28: ='[2]31'!AT28 -> 0 | L28: ='[2]31'!AU28 -> 0 | M28: ='[2]31'!AV28 -> 0 | N28: ='[2]31'!AW28 -> 0 | O28: ='[2]31'!AX28 -> 0 | P28: ='[2]31'!AY28 -> 0 | Q28: ='[2]31'!AZ28 -> 0 | R28: ='[2]31'!BA28 -> 0 | S28: ='[2]31'!BB28 -> 0 | T28: ='[2]31'!BC28 -> 0 | U28: ='[2]31'!BD28 -> 0 | V28: ='[2]31'!BE28 -> 0 | W28: ='[2]31'!BF28 -> 0 | X28: ='[2]31'!BG28 -> 0 | Y28: ='[2]31'!BH28 -> 0 | Z28: ='[2]31'!BI28 -> 0 | AA28: ='[2]31'!BJ28 -> 0 | AB28: ='[2]31'!BK28 -> 0 | AC28: ='[2]31'!BL28 -> 0 | AD28: ='[2]31'!BM28 -> 0 | AE28: ='[2]31'!BN28 -> 0 | AF28: ='[2]31'!BO28 -> 0 | AG28: ='[2]31'!BP28 -> 0 | AH28: ='[2]31'!BQ28 -> 0 | AI28: ='[2]31'!BR28 -> 0 | AJ28: ='[2]31'!BS28 -> 0 | AK28: ='[2]31'!BT28 -> 0 | AL28: ='[2]31'!BU28 -> 0 | AM28: ='[2]31'!BV28 -> 0 | AN28: ='[2]31'!BW28 -> 0 | AO28: ='[2]31'!BX28 -> 0 | AP28: 0 | AQ28: 0 | AR28: 0 | AS28: 76240 | AT28: 0 | AU28: 0 | AV28: 76240 | AW28: 51990 | AX28: 93450 | AY28: 100 | AZ28: 13 | BA28: 0 | BB28: 0 | BC28: 0 | BD28: 25 | BE28: =#REF! ->  | BF28: =AVERAGE(#REF!) ->  | BG28: =AVERAGE(#REF!) -> 
B29: 1 | C29: ='[2]31'!AL29 -> 0 | D29: ='[2]31'!AM29 -> 0 | E29: ='[2]31'!AN29 -> 0 | F29: ='[2]31'!AO29 -> 0 | G29: ='[2]31'!AP29 -> 0 | H29: ='[2]31'!AQ29 -> 0 | I29: ='[2]31'!AR29 -> 0 | J29: ='[2]31'!AS29 -> 0 | K29: ='[2]31'!AT29 -> 0 | L29: ='[2]31'!AU29 -> 0 | M29: ='[2]31'!AV29 -> 0 | N29: ='[2]31'!AW29 -> 0 | O29: ='[2]31'!AX29 -> 0 | P29: ='[2]31'!AY29 -> 0 | Q29: ='[2]31'!AZ29 -> 0 | R29: ='[2]31'!BA29 -> 0 | S29: ='[2]31'!BB29 -> 0 | T29: ='[2]31'!BC29 -> 0 | U29: ='[2]31'!BD29 -> 0 | V29: ='[2]31'!BE29 -> 0 | W29: ='[2]31'!BF29 -> 0 | X29: ='[2]31'!BG29 -> 0 | Y29: ='[2]31'!BH29 -> 0 | Z29: ='[2]31'!BI29 -> 0 | AA29: ='[2]31'!BJ29 -> 0 | AB29: ='[2]31'!BK29 -> 0 | AC29: ='[2]31'!BL29 -> 0 | AD29: ='[2]31'!BM29 -> 0 | AE29: ='[2]31'!BN29 -> 0 | AF29: ='[2]31'!BO29 -> 0 | AG29: ='[2]31'!BP29 -> 0 | AH29: ='[2]31'!BQ29 -> 0 | AI29: ='[2]31'!BR29 -> 0 | AJ29: ='[2]31'!BS29 -> 0 | AK29: ='[2]31'!BT29 -> 0 | AL29: ='[2]31'!BU29 -> 0 | AM29: ='[2]31'!BV29 -> 0 | AN29: ='[2]31'!BW29 -> 0 | AO29: ='[2]31'!BX29 -> 0 | AP29: 0 | AQ29: 0 | AR29: 0 | AS29: 76240 | AT29: 0 | AU29: 0 | AV29: 76240 | AW29: 51990 | AX29: 93450 | AY29: 100 | AZ29: 13 | BA29: 0 | BB29: 0 | BC29: 0 | BD29: 26 | BE29: =#REF! ->  | BF29: =AVERAGE(#REF!) ->  | BG29: =AVERAGE(#REF!) -> 
A30: Причина простоя | AD30: КР ГТД | AQ30: Средний КИМ (ЗГТЭС): | AU30: =IFERROR(AVERAGEIF(AU6:AU29,"<>#ДЕЛ/0!",AU6:AU29), 0) -> 0.01153156698 | AW30: Средний КИМ (ЗГТЭС за месяц): | BB30: =IFERROR(AVERAGEIF(BE4:BE34,">0"),0) -> 0.01153156698 | BD30: 27 | BE30: =#REF! ->  | BF30: =AVERAGE(#REF!) ->  | BG30: =AVERAGE(#REF!) -> 
BD31: 28 | BE31: =#REF! ->  | BF31: =AVERAGE(#REF!) ->  | BG31: =AVERAGE(#REF!) -> 
AW32: Средняя активная мощность за месяц: | BB32: =IFERROR(AVERAGEIF(BF4:BF34,">0"),0) -> 879.1666667 | BD32: 29 | BE32: =#REF! ->  | BF32: =AVERAGE(#REF!) ->  | BG32: =AVERAGE(#REF!) -> 
G33: На начало суток | U33: За текущие сутки | AI33: На конец суток | AW33: Средний запас активной мощности за месяц | BB33: =IFERROR(AVERAGEIF(BG4:BG34,">0"),0) -> 74610.83333 | BD33: 30 | BE33: =#REF! ->  | BF33: =AVERAGE(#REF!) ->  | BG33: =AVERAGE(#REF!) -> 
G34: УРАЛ_1 | H34: УРАЛ_2 | I34: УРАЛ_3 | J34: УРАЛ_4 | K34: ЭГЭС_11 | L34: ЭГЭС_12 | M34: САТУРН_6 | N34: САТУРН_7 | O34: МС_9 | P34: МС_10 | Q34: ПАЭС_3 | R34: ПАЭС_4 | S34: ДЭС | U34: УРАЛ_1 | V34: УРАЛ_2 | W34: УРАЛ_3 | X34: УРАЛ_4 | Y34: ЭГЭС_11 | Z34: ЭГЭС_12 | AA34: САТУРН_6 | AB34: САТУРН_7 | AC34: МС_9 | AD34: МС_10 | AE34: ПАЭС_3 | AF34: ПАЭС_4 | AG34: ДЭС | AI34: УРАЛ_1 | AJ34: УРАЛ_2 | AK34: УРАЛ_3 | AL34: УРАЛ_4 | AM34: ЭГЭС_11 | AN34: ЭГЭС_12 | AO34: САТУРН_6 | AP34: САТУРН_7 | AQ34: МС_9 | AR34: МС_10 | AS34: ПАЭС_3 | AT34: ПАЭС_4 | AU34: ДЭС | BD34: 31 | BE34: ='31'!AU30 -> 0.01153156698 | BF34: =AVERAGE('31'!AP6:AP29) -> 879.1666667 | BG34: =AVERAGE('31'!AV6:AV29) -> 74610.83333
G35: Наработка ЭС общая | U35: ПРОВЕРЯТЬ ЕЖЕСУТОЧНО ПРИ НАЛИЧИИ ИЛИ ИЗМЕНЕНИИ! | AI35: Наработка ЭС общая
G36: =#REF! ->  | H36: =#REF! ->  | I36: =#REF! ->  | J36: =#REF! ->  | K36: =#REF! ->  | L36: =#REF! ->  | M36: =#REF! ->  | N36: =#REF! ->  | O36: =#REF! ->  | P36: =#REF! ->  | Q36: =#REF! ->  | R36: =#REF! ->  | S36: =#REF! ->  | AI36: =G36+U70 ->  | AJ36: =H36+V70 ->  | AK36: =I36+W70 ->  | AL36: =J36+X70 -> 
G37: Часы простоя ЭС | U37: Вид ТО | AI37: Часы простоя ЭС
G38: =#REF! ->  | H38: =#REF! ->  | I38: =#REF! ->  | J38: =#REF! ->  | K38: =#REF! ->  | L38: =#REF! ->  | M38: =#REF! ->  | N38: =#REF! ->  | O38: =#REF! ->  | P38: =#REF! ->  | Q38: =#REF! ->  | R38: =#REF! ->  | S38: =#REF! ->  | U38: =G54 ->  | AI38: =G38+U72 ->  | AJ38: =H38+V72 ->  | AK38: =I38+W72 ->  | AL38: =J38+X72 -> 
G39: в резерве | U39: Общее количество запусков | AI39: в резерве
G40: =#REF! ->  | H40: =#REF! ->  | I40: =#REF! ->  | J40: =#REF! ->  | K40: =#REF! ->  | L40: =#REF! ->  | M40: =#REF! ->  | N40: =#REF! ->  | O40: =#REF! ->  | P40: =#REF! ->  | Q40: =#REF! ->  | R40: =#REF! ->  | S40: =#REF! ->  | U40: =U42+U44 ->  | V40: =V42+V44 ->  | AI40: =G40+U74 ->  | AJ40: =H40+V74 ->  | AK40: =I40+W74 ->  | AL40: =J40+X74 -> 
G41: в ремонте | U41: удачных запусков | AI41: в ремонте
G42: =#REF! ->  | H42: =#REF! ->  | I42: =#REF! ->  | J42: =#REF! ->  | K42: =#REF! ->  | L42: =#REF! ->  | M42: =#REF! ->  | N42: =#REF! ->  | O42: =#REF! ->  | P42: =#REF! ->  | Q42: =#REF! ->  | R42: =#REF! ->  | S42: =#REF! ->  | U42: =COUNTIFS(#REF!,"ТГ-1",#REF!,"Запуск на ХХ",#REF!,">"&(DATE(YEAR(#REF!),MONTH(#REF!),MID(CELL("имяфайла",$A$1),FIND("]",CELL("имяфайла",$A$1))+1,31))),#REF!,"<"&(DATE(YEAR(#REF!),MONTH(#REF!),MID(CELL("имяфайла",$A$1),FIND("]",CELL("имяфайла",$A$1))+1,31)+1))) ->  | V42: =COUNTIFS(#REF!,"ТГ-2",#REF!,"Запуск на ХХ",#REF!,">"&(DATE(YEAR(#REF!),MONTH(#REF!),MID(CELL("имяфайла",$A$1),FIND("]",CELL("имяфайла",$A$1))+1,31))),#REF!,"<"&(DATE(YEAR(#REF!),MONTH(#REF!),MID(CELL("имяфайла",$A$1),FIND("]",CELL("имяфайла",$A$1))+1,31)+1))) ->  | W42: =COUNTIFS(#REF!,"ТГ-3",#REF!,"Запуск на ХХ",#REF!,">"&(DATE(YEAR(#REF!),MONTH(#REF!),MID(CELL("имяфайла",$A$1),FIND("]",CELL("имяфайла",$A$1))+1,31))),#REF!,"<"&(DATE(YEAR(#REF!),MONTH(#REF!),MID(CELL("имяфайла",$A$1),FIND("]",CELL("имяфайла",$A$1))+1,31)+1))) ->  | X42: =COUNTIFS(#REF!,"ТГ-4",#REF!,"Запуск на ХХ",#REF!,">"&(DATE(YEAR(#REF!),MONTH(#REF!),MID(CELL("имяфайла",$A$1),FIND("]",CELL("имяфайла",$A$1))+1,31))),#REF!,"<"&(DATE(YEAR(#REF!),MONTH(#REF!),MID(CELL("имяфайла",$A$1),FIND("]",CELL("имяфайла",$A$1))+1,31)+1))) ->  | Y42: =COUNTIFS(#REF!,"ТГ-11",#REF!,"Запуск на ХХ",#REF!,">"&(DATE(YEAR(#REF!),MONTH(#REF!),MID(CELL("имяфайла",$A$1),FIND("]",CELL("имяфайла",$A$1))+1,31))),#REF!,"<"&(DATE(YEAR(#REF!),MONTH(#REF!),MID(CELL("имяфайла",$A$1),FIND("]",CELL("имяфайла",$A$1))+1,31)+1))) ->  | Z42: =COUNTIFS(#REF!,"ТГ-12",#REF!,"Запуск на ХХ",#REF!,">"&(DATE(YEAR(#REF!),MONTH(#REF!),MID(CELL("имяфайла",$A$1),FIND("]",CELL("имяфайла",$A$1))+1,31))),#REF!,"<"&(DATE(YEAR(#REF!),MONTH(#REF!),MID(CELL("имяфайла",$A$1),FIND("]",CELL("имяфайла",$A$1))+1,31)+1))) ->  | AA42: =COUNTIFS(#REF!,"ТГ-6",#REF!,"Запуск на ХХ",#REF!,">"&(DATE(YEAR(#REF!),MONTH(#REF!),MID(CELL("имяфайла",$A$1),FIND("]",CELL("имяфайла",$A$1))+1,31))),#REF!,"<"&(DATE(YEAR(#REF!),MONTH(#REF!),MID(CELL("имяфайла",$A$1),FIND("]",CELL("имяфайла",$A$1))+1,31)+1))) ->  | AB42: =COUNTIFS(#REF!,"ТГ-7",#REF!,"Запуск на ХХ",#REF!,">"&(DATE(YEAR(#REF!),MONTH(#REF!),MID(CELL("имяфайла",$A$1),FIND("]",CELL("имяфайла",$A$1))+1,31))),#REF!,"<"&(DATE(YEAR(#REF!),MONTH(#REF!),MID(CELL("имяфайла",$A$1),FIND("]",CELL("имяфайла",$A$1))+1,31)+1))) ->  | AC42: =COUNTIFS(#REF!,"ТГ-9",#REF!,"Запуск на ХХ",#REF!,">"&(DATE(YEAR(#REF!),MONTH(#REF!),MID(CELL("имяфайла",$A$1),FIND("]",CELL("имяфайла",$A$1))+1,31))),#REF!,"<"&(DATE(YEAR(#REF!),MONTH(#REF!),MID(CELL("имяфайла",$A$1),FIND("]",CELL("имяфайла",$A$1))+1,31)+1))) ->  | AD42: =COUNTIFS(#REF!,"ТГ-10",#REF!,"Запуск на ХХ",#REF!,">"&(DATE(YEAR(#REF!),MONTH(#REF!),MID(CELL("имяфайла",$A$1),FIND("]",CELL("имяфайла",$A$1))+1,31))),#REF!,"<"&(DATE(YEAR(#REF!),MONTH(#REF!),MID(CELL("имяфайла",$A$1),FIND("]",CELL("имяфайла",$A$1))+1,31)+1))) ->  | AE42: =COUNTIFS(#REF!,"ТГ-5",#REF!,"Запуск на ХХ",#REF!,">"&(DATE(YEAR(#REF!),MONTH(#REF!),MID(CELL("имяфайла",$A$1),FIND("]",CELL("имяфайла",$A$1))+1,31))),#REF!,"<"&(DATE(YEAR(#REF!),MONTH(#REF!),MID(CELL("имяфайла",$A$1),FIND("]",CELL("имяфайла",$A$1))+1,31)+1))) ->  | AF42: =COUNTIFS(#REF!,"ТГ-8",#REF!,"Запуск на ХХ",#REF!,">"&(DATE(YEAR(#REF!),MONTH(#REF!),MID(CELL("имяфайла",$A$1),FIND("]",CELL("имяфайла",$A$1))+1,31))),#REF!,"<"&(DATE(YEAR(#REF!),MONTH(#REF!),MID(CELL("имяфайла",$A$1),FIND("]",CELL("имяфайла",$A$1))+1,31)+1))) ->  | AG42: =COUNTIFS(#REF!,"ДЭС",#REF!,"Запуск на ХХ",#REF!,">"&(DATE(YEAR(#REF!),MONTH(#REF!),MID(CELL("имяфайла",$A$1),FIND("]",CELL("имяфайла",$A$1))+1,31))),#REF!,"<"&(DATE(YEAR(#REF!),MONTH(#REF!),MID(CELL("имяфайла",$A$1),FIND("]",CELL("имяфайла",$A$1))+1,31)+1))) ->  | AI42: =G42+U76 ->  | AJ42: =H42+V76 ->  | AK42: =I42+W76 ->  | AL42: =J42+X76 -> 
G43: в ТО | U43: неудачных запусков | AI43: в ТО
G44: =#REF! ->  | H44: =#REF! ->  | I44: =#REF! ->  | J44: =#REF! ->  | K44: =#REF! ->  | L44: =#REF! ->  | M44: =#REF! ->  | N44: =#REF! ->  | O44: =#REF! ->  | P44: =#REF! ->  | Q44: =#REF! ->  | R44: =#REF! ->  | S44: =#REF! ->  | U44: =COUNTIFS(#REF!,"ТГ-1",#REF!,"Неудачный запуск",#REF!,">"&(DATE(YEAR(#REF!),MONTH(#REF!),MID(CELL("имяфайла",$A$1),FIND("]",CELL("имяфайла",$A$1))+1,31))),#REF!,"<"&(DATE(YEAR(#REF!),MONTH(#REF!),MID(CELL("имяфайла",$A$1),FIND("]",CELL("имяфайла",$A$1))+1,31)+1))) ->  | V44: =COUNTIFS(#REF!,"ТГ-2",#REF!,"Неудачный запуск",#REF!,">"&(DATE(YEAR(#REF!),MONTH(#REF!),MID(CELL("имяфайла",$A$1),FIND("]",CELL("имяфайла",$A$1))+1,31))),#REF!,"<"&(DATE(YEAR(#REF!),MONTH(#REF!),MID(CELL("имяфайла",$A$1),FIND("]",CELL("имяфайла",$A$1))+1,31)+1))) ->  | W44: =COUNTIFS(#REF!,"ТГ-3",#REF!,"Неудачный запуск",#REF!,">"&(DATE(YEAR(#REF!),MONTH(#REF!),MID(CELL("имяфайла",$A$1),FIND("]",CELL("имяфайла",$A$1))+1,31))),#REF!,"<"&(DATE(YEAR(#REF!),MONTH(#REF!),MID(CELL("имяфайла",$A$1),FIND("]",CELL("имяфайла",$A$1))+1,31)+1))) ->  | X44: =COUNTIFS(#REF!,"ТГ-4",#REF!,"Неудачный запуск",#REF!,">"&(DATE(YEAR(#REF!),MONTH(#REF!),MID(CELL("имяфайла",$A$1),FIND("]",CELL("имяфайла",$A$1))+1,31))),#REF!,"<"&(DATE(YEAR(#REF!),MONTH(#REF!),MID(CELL("имяфайла",$A$1),FIND("]",CELL("имяфайла",$A$1))+1,31)+1))) ->  | Y44: =COUNTIFS(#REF!,"ТГ-11",#REF!,"Неудачный запуск",#REF!,">"&(DATE(YEAR(#REF!),MONTH(#REF!),MID(CELL("имяфайла",$A$1),FIND("]",CELL("имяфайла",$A$1))+1,31))),#REF!,"<"&(DATE(YEAR(#REF!),MONTH(#REF!),MID(CELL("имяфайла",$A$1),FIND("]",CELL("имяфайла",$A$1))+1,31)+1))) ->  | Z44: =COUNTIFS(#REF!,"ТГ-12",#REF!,"Неудачный запуск",#REF!,">"&(DATE(YEAR(#REF!),MONTH(#REF!),MID(CELL("имяфайла",$A$1),FIND("]",CELL("имяфайла",$A$1))+1,31))),#REF!,"<"&(DATE(YEAR(#REF!),MONTH(#REF!),MID(CELL("имяфайла",$A$1),FIND("]",CELL("имяфайла",$A$1))+1,31)+1))) ->  | AA44: =COUNTIFS(#REF!,"ТГ-6",#REF!,"Неудачный запуск",#REF!,">"&(DATE(YEAR(#REF!),MONTH(#REF!),MID(CELL("имяфайла",$A$1),FIND("]",CELL("имяфайла",$A$1))+1,31))),#REF!,"<"&(DATE(YEAR(#REF!),MONTH(#REF!),MID(CELL("имяфайла",$A$1),FIND("]",CELL("имяфайла",$A$1))+1,31)+1))) ->  | AB44: =COUNTIFS(#REF!,"ТГ-7",#REF!,"Неудачный запуск",#REF!,">"&(DATE(YEAR(#REF!),MONTH(#REF!),MID(CELL("имяфайла",$A$1),FIND("]",CELL("имяфайла",$A$1))+1,31))),#REF!,"<"&(DATE(YEAR(#REF!),MONTH(#REF!),MID(CELL("имяфайла",$A$1),FIND("]",CELL("имяфайла",$A$1))+1,31)+1))) ->  | AC44: =COUNTIFS(#REF!,"ТГ-9",#REF!,"Неудачный запуск",#REF!,">"&(DATE(YEAR(#REF!),MONTH(#REF!),MID(CELL("имяфайла",$A$1),FIND("]",CELL("имяфайла",$A$1))+1,31))),#REF!,"<"&(DATE(YEAR(#REF!),MONTH(#REF!),MID(CELL("имяфайла",$A$1),FIND("]",CELL("имяфайла",$A$1))+1,31)+1))) ->  | AD44: =COUNTIFS(#REF!,"ТГ-10",#REF!,"Неудачный запуск",#REF!,">"&(DATE(YEAR(#REF!),MONTH(#REF!),MID(CELL("имяфайла",$A$1),FIND("]",CELL("имяфайла",$A$1))+1,31))),#REF!,"<"&(DATE(YEAR(#REF!),MONTH(#REF!),MID(CELL("имяфайла",$A$1),FIND("]",CELL("имяфайла",$A$1))+1,31)+1))) ->  | AE44: =COUNTIFS(#REF!,"ТГ-5",#REF!,"Неудачный запуск",#REF!,">"&(DATE(YEAR(#REF!),MONTH(#REF!),MID(CELL("имяфайла",$A$1),FIND("]",CELL("имяфайла",$A$1))+1,31))),#REF!,"<"&(DATE(YEAR(#REF!),MONTH(#REF!),MID(CELL("имяфайла",$A$1),FIND("]",CELL("имяфайла",$A$1))+1,31)+1))) ->  | AF44: =COUNTIFS(#REF!,"ТГ-8",#REF!,"Неудачный запуск",#REF!,">"&(DATE(YEAR(#REF!),MONTH(#REF!),MID(CELL("имяфайла",$A$1),FIND("]",CELL("имяфайла",$A$1))+1,31))),#REF!,"<"&(DATE(YEAR(#REF!),MONTH(#REF!),MID(CELL("имяфайла",$A$1),FIND("]",CELL("имяфайла",$A$1))+1,31)+1))) ->  | AG44: =COUNTIFS(#REF!,"ДЭС",#REF!,"Неудачный запуск",#REF!,">"&(DATE(YEAR(#REF!),MONTH(#REF!),MID(CELL("имяфайла",$A$1),FIND("]",CELL("имяфайла",$A$1))+1,31))),#REF!,"<"&(DATE(YEAR(#REF!),MONTH(#REF!),MID(CELL("имяфайла",$A$1),FIND("]",CELL("имяфайла",$A$1))+1,31)+1))) ->  | AI44: =G44+U78 ->  | AJ44: =H44+V78 ->  | AK44: =I44+W78 ->  | AL44: =J44+X78 -> 
G45: Наработка двигателя общая | U45: Количество включения стартера | AI45: Наработка двигателя общая
G46: =#REF! ->  | H46: =#REF! ->  | I46: =#REF! ->  | J46: =#REF! ->  | K46: =#REF! ->  | L46: =#REF! ->  | M46: =#REF! ->  | N46: =#REF! ->  | O46: =#REF! ->  | P46: =#REF! ->  | Q46: =#REF! ->  | R46: =#REF! ->  | S46: =#REF! ->  | U46: =U40+U58+U60 ->  | AI46: =G46+U70 ->  | AJ46: =H46+V70 ->  | AK46: =I46+W70 ->  | AL46: =J46+X70 -> 
G47: Наработка ЭС после КР | U47: Количество остановов | AI47: Наработка ЭС после КР
G48: =#REF! ->  | H48: =#REF! ->  | I48: =#REF! ->  | J48: =#REF! ->  | K48: =#REF! ->  | L48: =#REF! ->  | M48: =#REF! ->  | N48: =#REF! ->  | O48: =#REF! ->  | P48: =#REF! ->  | Q48: =#REF! ->  | R48: =#REF! ->  | S48: =#REF! ->  | U48: =U50+U52+U54+U56 ->  | AI48: =G48+U70 ->  | AJ48: =H48+V70 ->  | AK48: =I48+W70 ->  | AL48: =J48+X70 -> 
G49: Наработка двигателя после КР | U49: Нормальный останов (НО) | AI49: Наработка двигателя после КР
G50: =#REF! ->  | H50: =#REF! ->  | I50: =#REF! ->  | J50: =#REF! ->  | K50: =#REF! ->  | L50: =#REF! ->  | M50: =#REF! ->  | N50: =#REF! ->  | O50: =#REF! ->  | P50: =#REF! ->  | Q50: =#REF! ->  | R50: =#REF! ->  | S50: =#REF! ->  | U50: =COUNTIFS(#REF!,"ТГ-1",#REF!,"НО",#REF!,">"&(DATE(YEAR(#REF!),MONTH(#REF!),MID(CELL("имяфайла",$A$1),FIND("]",CELL("имяфайла",$A$1))+1,31))),#REF!,"<"&(DATE(YEAR(#REF!),MONTH(#REF!),MID(CELL("имяфайла",$A$1),FIND("]",CELL("имяфайла",$A$1))+1,31)+1))) ->  | V50: =COUNTIFS(#REF!,"ТГ-2",#REF!,"НО",#REF!,">"&(DATE(YEAR(#REF!),MONTH(#REF!),MID(CELL("имяфайла",$A$1),FIND("]",CELL("имяфайла",$A$1))+1,31))),#REF!,"<"&(DATE(YEAR(#REF!),MONTH(#REF!),MID(CELL("имяфайла",$A$1),FIND("]",CELL("имяфайла",$A$1))+1,31)+1))) ->  | W50: =COUNTIFS(#REF!,"ТГ-3",#REF!,"НО",#REF!,">"&(DATE(YEAR(#REF!),MONTH(#REF!),MID(CELL("имяфайла",$A$1),FIND("]",CELL("имяфайла",$A$1))+1,31))),#REF!,"<"&(DATE(YEAR(#REF!),MONTH(#REF!),MID(CELL("имяфайла",$A$1),FIND("]",CELL("имяфайла",$A$1))+1,31)+1))) ->  | X50: =COUNTIFS(#REF!,"ТГ-4",#REF!,"НО",#REF!,">"&(DATE(YEAR(#REF!),MONTH(#REF!),MID(CELL("имяфайла",$A$1),FIND("]",CELL("имяфайла",$A$1))+1,31))),#REF!,"<"&(DATE(YEAR(#REF!),MONTH(#REF!),MID(CELL("имяфайла",$A$1),FIND("]",CELL("имяфайла",$A$1))+1,31)+1))) ->  | Y50: =COUNTIFS(#REF!,"ТГ-11",#REF!,"НО",#REF!,">"&(DATE(YEAR(#REF!),MONTH(#REF!),MID(CELL("имяфайла",$A$1),FIND("]",CELL("имяфайла",$A$1))+1,31))),#REF!,"<"&(DATE(YEAR(#REF!),MONTH(#REF!),MID(CELL("имяфайла",$A$1),FIND("]",CELL("имяфайла",$A$1))+1,31)+1))) ->  | Z50: =COUNTIFS(#REF!,"ТГ-12",#REF!,"НО",#REF!,">"&(DATE(YEAR(#REF!),MONTH(#REF!),MID(CELL("имяфайла",$A$1),FIND("]",CELL("имяфайла",$A$1))+1,31))),#REF!,"<"&(DATE(YEAR(#REF!),MONTH(#REF!),MID(CELL("имяфайла",$A$1),FIND("]",CELL("имяфайла",$A$1))+1,31)+1))) ->  | AA50: =COUNTIFS(#REF!,"ТГ-6",#REF!,"НО",#REF!,">"&(DATE(YEAR(#REF!),MONTH(#REF!),MID(CELL("имяфайла",$A$1),FIND("]",CELL("имяфайла",$A$1))+1,31))),#REF!,"<"&(DATE(YEAR(#REF!),MONTH(#REF!),MID(CELL("имяфайла",$A$1),FIND("]",CELL("имяфайла",$A$1))+1,31)+1))) ->  | AB50: =COUNTIFS(#REF!,"ТГ-7",#REF!,"НО",#REF!,">"&(DATE(YEAR(#REF!),MONTH(#REF!),MID(CELL("имяфайла",$A$1),FIND("]",CELL("имяфайла",$A$1))+1,31))),#REF!,"<"&(DATE(YEAR(#REF!),MONTH(#REF!),MID(CELL("имяфайла",$A$1),FIND("]",CELL("имяфайла",$A$1))+1,31)+1))) ->  | AC50: =COUNTIFS(#REF!,"ТГ-9",#REF!,"НО",#REF!,">"&(DATE(YEAR(#REF!),MONTH(#REF!),MID(CELL("имяфайла",$A$1),FIND("]",CELL("имяфайла",$A$1))+1,31))),#REF!,"<"&(DATE(YEAR(#REF!),MONTH(#REF!),MID(CELL("имяфайла",$A$1),FIND("]",CELL("имяфайла",$A$1))+1,31)+1))) ->  | AD50: =COUNTIFS(#REF!,"ТГ-10",#REF!,"НО",#REF!,">"&(DATE(YEAR(#REF!),MONTH(#REF!),MID(CELL("имяфайла",$A$1),FIND("]",CELL("имяфайла",$A$1))+1,31))),#REF!,"<"&(DATE(YEAR(#REF!),MONTH(#REF!),MID(CELL("имяфайла",$A$1),FIND("]",CELL("имяфайла",$A$1))+1,31)+1))) ->  | AE50: =COUNTIFS(#REF!,"ТГ-5",#REF!,"НО",#REF!,">"&(DATE(YEAR(#REF!),MONTH(#REF!),MID(CELL("имяфайла",$A$1),FIND("]",CELL("имяфайла",$A$1))+1,31))),#REF!,"<"&(DATE(YEAR(#REF!),MONTH(#REF!),MID(CELL("имяфайла",$A$1),FIND("]",CELL("имяфайла",$A$1))+1,31)+1))) ->  | AF50: =COUNTIFS(#REF!,"ТГ-8",#REF!,"НО",#REF!,">"&(DATE(YEAR(#REF!),MONTH(#REF!),MID(CELL("имяфайла",$A$1),FIND("]",CELL("имяфайла",$A$1))+1,31))),#REF!,"<"&(DATE(YEAR(#REF!),MONTH(#REF!),MID(CELL("имяфайла",$A$1),FIND("]",CELL("имяфайла",$A$1))+1,31)+1))) ->  | AG50: =COUNTIFS(#REF!,"ДЭС",#REF!,"НО",#REF!,">"&(DATE(YEAR(#REF!),MONTH(#REF!),MID(CELL("имяфайла",$A$1),FIND("]",CELL("имяфайла",$A$1))+1,31))),#REF!,"<"&(DATE(YEAR(#REF!),MONTH(#REF!),MID(CELL("имяфайла",$A$1),FIND("]",CELL("имяфайла",$A$1))+1,31)+1))) ->  | AI50: =G50+U70 ->  | AJ50: =H50+V70 ->  | AK50: =I50+W70 ->  | AL50: =J50+X70 -> 
G51: Наработка ЭС и двигателя после ТО | U51: Автоматический нормальный останов (АНО) | AI51: Наработка ЭС и двигателя после ТО
G52: =#REF! ->  | H52: =#REF! ->  | I52: =#REF! ->  | J52: =#REF! ->  | K52: =#REF! ->  | L52: =#REF! ->  | M52: =#REF! ->  | N52: =#REF! ->  | O52: =#REF! ->  | P52: =#REF! ->  | Q52: =#REF! ->  | R52: =#REF! ->  | S52: =#REF! ->  | U52: =COUNTIFS(#REF!,"ТГ-1",#REF!,"АНО",#REF!,">"&(DATE(YEAR(#REF!),MONTH(#REF!),MID(CELL("имяфайла",$A$1),FIND("]",CELL("имяфайла",$A$1))+1,31))),#REF!,"<"&(DATE(YEAR(#REF!),MONTH(#REF!),MID(CELL("имяфайла",$A$1),FIND("]",CELL("имяфайла",$A$1))+1,31)+1))) ->  | V52: =COUNTIFS(#REF!,"ТГ-2",#REF!,"АНО",#REF!,">"&(DATE(YEAR(#REF!),MONTH(#REF!),MID(CELL("имяфайла",$A$1),FIND("]",CELL("имяфайла",$A$1))+1,31))),#REF!,"<"&(DATE(YEAR(#REF!),MONTH(#REF!),MID(CELL("имяфайла",$A$1),FIND("]",CELL("имяфайла",$A$1))+1,31)+1))) ->  | W52: =COUNTIFS(#REF!,"ТГ-3",#REF!,"АНО",#REF!,">"&(DATE(YEAR(#REF!),MONTH(#REF!),MID(CELL("имяфайла",$A$1),FIND("]",CELL("имяфайла",$A$1))+1,31))),#REF!,"<"&(DATE(YEAR(#REF!),MONTH(#REF!),MID(CELL("имяфайла",$A$1),FIND("]",CELL("имяфайла",$A$1))+1,31)+1))) ->  | X52: =COUNTIFS(#REF!,"ТГ-4",#REF!,"АНО",#REF!,">"&(DATE(YEAR(#REF!),MONTH(#REF!),MID(CELL("имяфайла",$A$1),FIND("]",CELL("имяфайла",$A$1))+1,31))),#REF!,"<"&(DATE(YEAR(#REF!),MONTH(#REF!),MID(CELL("имяфайла",$A$1),FIND("]",CELL("имяфайла",$A$1))+1,31)+1))) ->  | Y52: =COUNTIFS(#REF!,"ТГ-11",#REF!,"АНО",#REF!,">"&(DATE(YEAR(#REF!),MONTH(#REF!),MID(CELL("имяфайла",$A$1),FIND("]",CELL("имяфайла",$A$1))+1,31))),#REF!,"<"&(DATE(YEAR(#REF!),MONTH(#REF!),MID(CELL("имяфайла",$A$1),FIND("]",CELL("имяфайла",$A$1))+1,31)+1))) ->  | Z52: =COUNTIFS(#REF!,"ТГ-12",#REF!,"АНО",#REF!,">"&(DATE(YEAR(#REF!),MONTH(#REF!),MID(CELL("имяфайла",$A$1),FIND("]",CELL("имяфайла",$A$1))+1,31))),#REF!,"<"&(DATE(YEAR(#REF!),MONTH(#REF!),MID(CELL("имяфайла",$A$1),FIND("]",CELL("имяфайла",$A$1))+1,31)+1))) ->  | AA52: =COUNTIFS(#REF!,"ТГ-6",#REF!,"АНО",#REF!,">"&(DATE(YEAR(#REF!),MONTH(#REF!),MID(CELL("имяфайла",$A$1),FIND("]",CELL("имяфайла",$A$1))+1,31))),#REF!,"<"&(DATE(YEAR(#REF!),MONTH(#REF!),MID(CELL("имяфайла",$A$1),FIND("]",CELL("имяфайла",$A$1))+1,31)+1))) ->  | AB52: =COUNTIFS(#REF!,"ТГ-7",#REF!,"АНО",#REF!,">"&(DATE(YEAR(#REF!),MONTH(#REF!),MID(CELL("имяфайла",$A$1),FIND("]",CELL("имяфайла",$A$1))+1,31))),#REF!,"<"&(DATE(YEAR(#REF!),MONTH(#REF!),MID(CELL("имяфайла",$A$1),FIND("]",CELL("имяфайла",$A$1))+1,31)+1))) ->  | AC52: =COUNTIFS(#REF!,"ТГ-9",#REF!,"АНО",#REF!,">"&(DATE(YEAR(#REF!),MONTH(#REF!),MID(CELL("имяфайла",$A$1),FIND("]",CELL("имяфайла",$A$1))+1,31))),#REF!,"<"&(DATE(YEAR(#REF!),MONTH(#REF!),MID(CELL("имяфайла",$A$1),FIND("]",CELL("имяфайла",$A$1))+1,31)+1))) ->  | AD52: =COUNTIFS(#REF!,"ТГ-10",#REF!,"АНО",#REF!,">"&(DATE(YEAR(#REF!),MONTH(#REF!),MID(CELL("имяфайла",$A$1),FIND("]",CELL("имяфайла",$A$1))+1,31))),#REF!,"<"&(DATE(YEAR(#REF!),MONTH(#REF!),MID(CELL("имяфайла",$A$1),FIND("]",CELL("имяфайла",$A$1))+1,31)+1))) ->  | AE52: =COUNTIFS(#REF!,"ТГ-5",#REF!,"АНО",#REF!,">"&(DATE(YEAR(#REF!),MONTH(#REF!),MID(CELL("имяфайла",$A$1),FIND("]",CELL("имяфайла",$A$1))+1,31))),#REF!,"<"&(DATE(YEAR(#REF!),MONTH(#REF!),MID(CELL("имяфайла",$A$1),FIND("]",CELL("имяфайла",$A$1))+1,31)+1))) ->  | AF52: =COUNTIFS(#REF!,"ТГ-8",#REF!,"АНО",#REF!,">"&(DATE(YEAR(#REF!),MONTH(#REF!),MID(CELL("имяфайла",$A$1),FIND("]",CELL("имяфайла",$A$1))+1,31))),#REF!,"<"&(DATE(YEAR(#REF!),MONTH(#REF!),MID(CELL("имяфайла",$A$1),FIND("]",CELL("имяфайла",$A$1))+1,31)+1))) ->  | AG52: =COUNTIFS(#REF!,"ДЭС",#REF!,"АНО",#REF!,">"&(DATE(YEAR(#REF!),MONTH(#REF!),MID(CELL("имяфайла",$A$1),FIND("]",CELL("имяфайла",$A$1))+1,31))),#REF!,"<"&(DATE(YEAR(#REF!),MONTH(#REF!),MID(CELL("имяфайла",$A$1),FIND("]",CELL("имяфайла",$A$1))+1,31)+1))) ->  | AI52: =G52+U70 ->  | AJ52: =H52+V70 ->  | AK52: =I52+W70 ->  | AL52: =J52+X70 -> 
G53: Вид предыдущего ТО | U53: Аварийный останов (АО) | AI53: Вид предыдущего ТО
G54: =#REF! ->  | H54: =#REF! ->  | I54: =#REF! ->  | J54: =#REF! ->  | K54: =#REF! ->  | L54: =#REF! ->  | M54: =#REF! ->  | N54: =#REF! ->  | O54: =#REF! ->  | P54: =#REF! ->  | Q54: =#REF! ->  | R54: =#REF! ->  | S54: =#REF! ->  | U54: =COUNTIFS(#REF!,"ТГ-1",#REF!,"АО",#REF!,">"&(DATE(YEAR(#REF!),MONTH(#REF!),MID(CELL("имяфайла",$A$1),FIND("]",CELL("имяфайла",$A$1))+1,31))),#REF!,"<"&(DATE(YEAR(#REF!),MONTH(#REF!),MID(CELL("имяфайла",$A$1),FIND("]",CELL("имяфайла",$A$1))+1,31)+1))) ->  | V54: =COUNTIFS(#REF!,"ТГ-2",#REF!,"АО",#REF!,">"&(DATE(YEAR(#REF!),MONTH(#REF!),MID(CELL("имяфайла",$A$1),FIND("]",CELL("имяфайла",$A$1))+1,31))),#REF!,"<"&(DATE(YEAR(#REF!),MONTH(#REF!),MID(CELL("имяфайла",$A$1),FIND("]",CELL("имяфайла",$A$1))+1,31)+1))) ->  | W54: =COUNTIFS(#REF!,"ТГ-3",#REF!,"АО",#REF!,">"&(DATE(YEAR(#REF!),MONTH(#REF!),MID(CELL("имяфайла",$A$1),FIND("]",CELL("имяфайла",$A$1))+1,31))),#REF!,"<"&(DATE(YEAR(#REF!),MONTH(#REF!),MID(CELL("имяфайла",$A$1),FIND("]",CELL("имяфайла",$A$1))+1,31)+1))) ->  | X54: =COUNTIFS(#REF!,"ТГ-4",#REF!,"АО",#REF!,">"&(DATE(YEAR(#REF!),MONTH(#REF!),MID(CELL("имяфайла",$A$1),FIND("]",CELL("имяфайла",$A$1))+1,31))),#REF!,"<"&(DATE(YEAR(#REF!),MONTH(#REF!),MID(CELL("имяфайла",$A$1),FIND("]",CELL("имяфайла",$A$1))+1,31)+1))) ->  | Y54: =COUNTIFS(#REF!,"ТГ-11",#REF!,"АО",#REF!,">"&(DATE(YEAR(#REF!),MONTH(#REF!),MID(CELL("имяфайла",$A$1),FIND("]",CELL("имяфайла",$A$1))+1,31))),#REF!,"<"&(DATE(YEAR(#REF!),MONTH(#REF!),MID(CELL("имяфайла",$A$1),FIND("]",CELL("имяфайла",$A$1))+1,31)+1))) ->  | Z54: =COUNTIFS(#REF!,"ТГ-12",#REF!,"АО",#REF!,">"&(DATE(YEAR(#REF!),MONTH(#REF!),MID(CELL("имяфайла",$A$1),FIND("]",CELL("имяфайла",$A$1))+1,31))),#REF!,"<"&(DATE(YEAR(#REF!),MONTH(#REF!),MID(CELL("имяфайла",$A$1),FIND("]",CELL("имяфайла",$A$1))+1,31)+1))) ->  | AA54: =COUNTIFS(#REF!,"ТГ-6",#REF!,"АО",#REF!,">"&(DATE(YEAR(#REF!),MONTH(#REF!),MID(CELL("имяфайла",$A$1),FIND("]",CELL("имяфайла",$A$1))+1,31))),#REF!,"<"&(DATE(YEAR(#REF!),MONTH(#REF!),MID(CELL("имяфайла",$A$1),FIND("]",CELL("имяфайла",$A$1))+1,31)+1))) ->  | AB54: =COUNTIFS(#REF!,"ТГ-7",#REF!,"АО",#REF!,">"&(DATE(YEAR(#REF!),MONTH(#REF!),MID(CELL("имяфайла",$A$1),FIND("]",CELL("имяфайла",$A$1))+1,31))),#REF!,"<"&(DATE(YEAR(#REF!),MONTH(#REF!),MID(CELL("имяфайла",$A$1),FIND("]",CELL("имяфайла",$A$1))+1,31)+1))) ->  | AC54: =COUNTIFS(#REF!,"ТГ-9",#REF!,"АО",#REF!,">"&(DATE(YEAR(#REF!),MONTH(#REF!),MID(CELL("имяфайла",$A$1),FIND("]",CELL("имяфайла",$A$1))+1,31))),#REF!,"<"&(DATE(YEAR(#REF!),MONTH(#REF!),MID(CELL("имяфайла",$A$1),FIND("]",CELL("имяфайла",$A$1))+1,31)+1))) ->  | AD54: =COUNTIFS(#REF!,"ТГ-10",#REF!,"АО",#REF!,">"&(DATE(YEAR(#REF!),MONTH(#REF!),MID(CELL("имяфайла",$A$1),FIND("]",CELL("имяфайла",$A$1))+1,31))),#REF!,"<"&(DATE(YEAR(#REF!),MONTH(#REF!),MID(CELL("имяфайла",$A$1),FIND("]",CELL("имяфайла",$A$1))+1,31)+1))) ->  | AE54: =COUNTIFS(#REF!,"ТГ-5",#REF!,"АО",#REF!,">"&(DATE(YEAR(#REF!),MONTH(#REF!),MID(CELL("имяфайла",$A$1),FIND("]",CELL("имяфайла",$A$1))+1,31))),#REF!,"<"&(DATE(YEAR(#REF!),MONTH(#REF!),MID(CELL("имяфайла",$A$1),FIND("]",CELL("имяфайла",$A$1))+1,31)+1))) ->  | AF54: =COUNTIFS(#REF!,"ТГ-8",#REF!,"АО",#REF!,">"&(DATE(YEAR(#REF!),MONTH(#REF!),MID(CELL("имяфайла",$A$1),FIND("]",CELL("имяфайла",$A$1))+1,31))),#REF!,"<"&(DATE(YEAR(#REF!),MONTH(#REF!),MID(CELL("имяфайла",$A$1),FIND("]",CELL("имяфайла",$A$1))+1,31)+1))) ->  | AG54: =COUNTIFS(#REF!,"ДЭС",#REF!,"АО",#REF!,">"&(DATE(YEAR(#REF!),MONTH(#REF!),MID(CELL("имяфайла",$A$1),FIND("]",CELL("имяфайла",$A$1))+1,31))),#REF!,"<"&(DATE(YEAR(#REF!),MONTH(#REF!),MID(CELL("имяфайла",$A$1),FIND("]",CELL("имяфайла",$A$1))+1,31)+1))) ->  | AI54: =U38 ->  | AJ54: =V38 ->  | AK54: =W38 ->  | AL54: =X38 -> 
G55: Наработка двигателя после промывки (для ПАЭС - наработка масло смеси) | U55: Останов по пожару (АОП) | AI55: Наработка двигателя после промывки
G56: =#REF! ->  | H56: =#REF! ->  | I56: =#REF! ->  | J56: =#REF! ->  | K56: =#REF! ->  | L56: =#REF! ->  | M56: =#REF! ->  | N56: =#REF! ->  | O56: =#REF! ->  | P56: =#REF! ->  | Q56: =#REF! ->  | R56: =#REF! ->  | S56: =#REF! ->  | U56: =COUNTIFS(#REF!,"ТГ-1",#REF!,"АОП",#REF!,">"&(DATE(YEAR(#REF!),MONTH(#REF!),MID(CELL("имяфайла",$A$1),FIND("]",CELL("имяфайла",$A$1))+1,31))),#REF!,"<"&(DATE(YEAR(#REF!),MONTH(#REF!),MID(CELL("имяфайла",$A$1),FIND("]",CELL("имяфайла",$A$1))+1,31)+1))) ->  | V56: =COUNTIFS(#REF!,"ТГ-2",#REF!,"АОП",#REF!,">"&(DATE(YEAR(#REF!),MONTH(#REF!),MID(CELL("имяфайла",$A$1),FIND("]",CELL("имяфайла",$A$1))+1,31))),#REF!,"<"&(DATE(YEAR(#REF!),MONTH(#REF!),MID(CELL("имяфайла",$A$1),FIND("]",CELL("имяфайла",$A$1))+1,31)+1))) ->  | W56: =COUNTIFS(#REF!,"ТГ-3",#REF!,"АОП",#REF!,">"&(DATE(YEAR(#REF!),MONTH(#REF!),MID(CELL("имяфайла",$A$1),FIND("]",CELL("имяфайла",$A$1))+1,31))),#REF!,"<"&(DATE(YEAR(#REF!),MONTH(#REF!),MID(CELL("имяфайла",$A$1),FIND("]",CELL("имяфайла",$A$1))+1,31)+1))) ->  | X56: =COUNTIFS(#REF!,"ТГ-4",#REF!,"АОП",#REF!,">"&(DATE(YEAR(#REF!),MONTH(#REF!),MID(CELL("имяфайла",$A$1),FIND("]",CELL("имяфайла",$A$1))+1,31))),#REF!,"<"&(DATE(YEAR(#REF!),MONTH(#REF!),MID(CELL("имяфайла",$A$1),FIND("]",CELL("имяфайла",$A$1))+1,31)+1))) ->  | Y56: =COUNTIFS(#REF!,"ТГ-11",#REF!,"АОП",#REF!,">"&(DATE(YEAR(#REF!),MONTH(#REF!),MID(CELL("имяфайла",$A$1),FIND("]",CELL("имяфайла",$A$1))+1,31))),#REF!,"<"&(DATE(YEAR(#REF!),MONTH(#REF!),MID(CELL("имяфайла",$A$1),FIND("]",CELL("имяфайла",$A$1))+1,31)+1))) ->  | Z56: =COUNTIFS(#REF!,"ТГ-12",#REF!,"АОП",#REF!,">"&(DATE(YEAR(#REF!),MONTH(#REF!),MID(CELL("имяфайла",$A$1),FIND("]",CELL("имяфайла",$A$1))+1,31))),#REF!,"<"&(DATE(YEAR(#REF!),MONTH(#REF!),MID(CELL("имяфайла",$A$1),FIND("]",CELL("имяфайла",$A$1))+1,31)+1))) ->  | AA56: =COUNTIFS(#REF!,"ТГ-6",#REF!,"АОП",#REF!,">"&(DATE(YEAR(#REF!),MONTH(#REF!),MID(CELL("имяфайла",$A$1),FIND("]",CELL("имяфайла",$A$1))+1,31))),#REF!,"<"&(DATE(YEAR(#REF!),MONTH(#REF!),MID(CELL("имяфайла",$A$1),FIND("]",CELL("имяфайла",$A$1))+1,31)+1))) ->  | AB56: =COUNTIFS(#REF!,"ТГ-7",#REF!,"АОП",#REF!,">"&(DATE(YEAR(#REF!),MONTH(#REF!),MID(CELL("имяфайла",$A$1),FIND("]",CELL("имяфайла",$A$1))+1,31))),#REF!,"<"&(DATE(YEAR(#REF!),MONTH(#REF!),MID(CELL("имяфайла",$A$1),FIND("]",CELL("имяфайла",$A$1))+1,31)+1))) ->  | AC56: =COUNTIFS(#REF!,"ТГ-9",#REF!,"АОП",#REF!,">"&(DATE(YEAR(#REF!),MONTH(#REF!),MID(CELL("имяфайла",$A$1),FIND("]",CELL("имяфайла",$A$1))+1,31))),#REF!,"<"&(DATE(YEAR(#REF!),MONTH(#REF!),MID(CELL("имяфайла",$A$1),FIND("]",CELL("имяфайла",$A$1))+1,31)+1))) ->  | AD56: =COUNTIFS(#REF!,"ТГ-10",#REF!,"АОП",#REF!,">"&(DATE(YEAR(#REF!),MONTH(#REF!),MID(CELL("имяфайла",$A$1),FIND("]",CELL("имяфайла",$A$1))+1,31))),#REF!,"<"&(DATE(YEAR(#REF!),MONTH(#REF!),MID(CELL("имяфайла",$A$1),FIND("]",CELL("имяфайла",$A$1))+1,31)+1))) ->  | AE56: =COUNTIFS(#REF!,"ТГ-5",#REF!,"АОП",#REF!,">"&(DATE(YEAR(#REF!),MONTH(#REF!),MID(CELL("имяфайла",$A$1),FIND("]",CELL("имяфайла",$A$1))+1,31))),#REF!,"<"&(DATE(YEAR(#REF!),MONTH(#REF!),MID(CELL("имяфайла",$A$1),FIND("]",CELL("имяфайла",$A$1))+1,31)+1))) ->  | AF56: =COUNTIFS(#REF!,"ТГ-8",#REF!,"АОП",#REF!,">"&(DATE(YEAR(#REF!),MONTH(#REF!),MID(CELL("имяфайла",$A$1),FIND("]",CELL("имяфайла",$A$1))+1,31))),#REF!,"<"&(DATE(YEAR(#REF!),MONTH(#REF!),MID(CELL("имяфайла",$A$1),FIND("]",CELL("имяфайла",$A$1))+1,31)+1))) ->  | AG56: =COUNTIFS(#REF!,"ДЭС",#REF!,"АОП",#REF!,">"&(DATE(YEAR(#REF!),MONTH(#REF!),MID(CELL("имяфайла",$A$1),FIND("]",CELL("имяфайла",$A$1))+1,31))),#REF!,"<"&(DATE(YEAR(#REF!),MONTH(#REF!),MID(CELL("имяфайла",$A$1),FIND("]",CELL("имяфайла",$A$1))+1,31)+1))) ->  | AI56: =G56+U70 ->  | AJ56: =H56+V70 ->  | AK56: =I56+W70 ->  | AL56: =J56+X70 -> 
G57: Общее количество запусков | U57: число холодных (технологических) прокруток (ХП) | AI57: Общее количество запусков
G58: =#REF! ->  | H58: =#REF! ->  | I58: =#REF! ->  | J58: =#REF! ->  | K58: =#REF! ->  | L58: =#REF! ->  | M58: =#REF! ->  | N58: =#REF! ->  | O58: =#REF! ->  | P58: =#REF! ->  | Q58: =#REF! ->  | R58: =#REF! ->  | S58: =#REF! ->  | U58: =COUNTIFS(#REF!,"ТГ-1",#REF!,"ХП",#REF!,">"&(DATE(YEAR(#REF!),MONTH(#REF!),MID(CELL("имяфайла",$A$1),FIND("]",CELL("имяфайла",$A$1))+1,31))),#REF!,"<"&(DATE(YEAR(#REF!),MONTH(#REF!),MID(CELL("имяфайла",$A$1),FIND("]",CELL("имяфайла",$A$1))+1,31)+1))) ->  | V58: =COUNTIFS(#REF!,"ТГ-2",#REF!,"ХП",#REF!,">"&(DATE(YEAR(#REF!),MONTH(#REF!),MID(CELL("имяфайла",$A$1),FIND("]",CELL("имяфайла",$A$1))+1,31))),#REF!,"<"&(DATE(YEAR(#REF!),MONTH(#REF!),MID(CELL("имяфайла",$A$1),FIND("]",CELL("имяфайла",$A$1))+1,31)+1))) ->  | W58: =COUNTIFS(#REF!,"ТГ-3",#REF!,"ХП",#REF!,">"&(DATE(YEAR(#REF!),MONTH(#REF!),MID(CELL("имяфайла",$A$1),FIND("]",CELL("имяфайла",$A$1))+1,31))),#REF!,"<"&(DATE(YEAR(#REF!),MONTH(#REF!),MID(CELL("имяфайла",$A$1),FIND("]",CELL("имяфайла",$A$1))+1,31)+1))) ->  | X58: =COUNTIFS(#REF!,"ТГ-4",#REF!,"ХП",#REF!,">"&(DATE(YEAR(#REF!),MONTH(#REF!),MID(CELL("имяфайла",$A$1),FIND("]",CELL("имяфайла",$A$1))+1,31))),#REF!,"<"&(DATE(YEAR(#REF!),MONTH(#REF!),MID(CELL("имяфайла",$A$1),FIND("]",CELL("имяфайла",$A$1))+1,31)+1))) ->  | Y58: =COUNTIFS(#REF!,"ТГ-11",#REF!,"ХП",#REF!,">"&(DATE(YEAR(#REF!),MONTH(#REF!),MID(CELL("имяфайла",$A$1),FIND("]",CELL("имяфайла",$A$1))+1,31))),#REF!,"<"&(DATE(YEAR(#REF!),MONTH(#REF!),MID(CELL("имяфайла",$A$1),FIND("]",CELL("имяфайла",$A$1))+1,31)+1))) ->  | Z58: =COUNTIFS(#REF!,"ТГ-12",#REF!,"ХП",#REF!,">"&(DATE(YEAR(#REF!),MONTH(#REF!),MID(CELL("имяфайла",$A$1),FIND("]",CELL("имяфайла",$A$1))+1,31))),#REF!,"<"&(DATE(YEAR(#REF!),MONTH(#REF!),MID(CELL("имяфайла",$A$1),FIND("]",CELL("имяфайла",$A$1))+1,31)+1))) ->  | AA58: =COUNTIFS(#REF!,"ТГ-6",#REF!,"ХП",#REF!,">"&(DATE(YEAR(#REF!),MONTH(#REF!),MID(CELL("имяфайла",$A$1),FIND("]",CELL("имяфайла",$A$1))+1,31))),#REF!,"<"&(DATE(YEAR(#REF!),MONTH(#REF!),MID(CELL("имяфайла",$A$1),FIND("]",CELL("имяфайла",$A$1))+1,31)+1))) ->  | AB58: =COUNTIFS(#REF!,"ТГ-7",#REF!,"ХП",#REF!,">"&(DATE(YEAR(#REF!),MONTH(#REF!),MID(CELL("имяфайла",$A$1),FIND("]",CELL("имяфайла",$A$1))+1,31))),#REF!,"<"&(DATE(YEAR(#REF!),MONTH(#REF!),MID(CELL("имяфайла",$A$1),FIND("]",CELL("имяфайла",$A$1))+1,31)+1))) ->  | AC58: =COUNTIFS(#REF!,"ТГ-9",#REF!,"ХП",#REF!,">"&(DATE(YEAR(#REF!),MONTH(#REF!),MID(CELL("имяфайла",$A$1),FIND("]",CELL("имяфайла",$A$1))+1,31))),#REF!,"<"&(DATE(YEAR(#REF!),MONTH(#REF!),MID(CELL("имяфайла",$A$1),FIND("]",CELL("имяфайла",$A$1))+1,31)+1))) ->  | AD58: =COUNTIFS(#REF!,"ТГ-10",#REF!,"ХП",#REF!,">"&(DATE(YEAR(#REF!),MONTH(#REF!),MID(CELL("имяфайла",$A$1),FIND("]",CELL("имяфайла",$A$1))+1,31))),#REF!,"<"&(DATE(YEAR(#REF!),MONTH(#REF!),MID(CELL("имяфайла",$A$1),FIND("]",CELL("имяфайла",$A$1))+1,31)+1))) ->  | AE58: =COUNTIFS(#REF!,"ТГ-5",#REF!,"ХП",#REF!,">"&(DATE(YEAR(#REF!),MONTH(#REF!),MID(CELL("имяфайла",$A$1),FIND("]",CELL("имяфайла",$A$1))+1,31))),#REF!,"<"&(DATE(YEAR(#REF!),MONTH(#REF!),MID(CELL("имяфайла",$A$1),FIND("]",CELL("имяфайла",$A$1))+1,31)+1))) ->  | AF58: =COUNTIFS(#REF!,"ТГ-8",#REF!,"ХП",#REF!,">"&(DATE(YEAR(#REF!),MONTH(#REF!),MID(CELL("имяфайла",$A$1),FIND("]",CELL("имяфайла",$A$1))+1,31))),#REF!,"<"&(DATE(YEAR(#REF!),MONTH(#REF!),MID(CELL("имяфайла",$A$1),FIND("]",CELL("имяфайла",$A$1))+1,31)+1))) ->  | AG58: =COUNTIFS(#REF!,"ДЭС",#REF!,"ХП",#REF!,">"&(DATE(YEAR(#REF!),MONTH(#REF!),MID(CELL("имяфайла",$A$1),FIND("]",CELL("имяфайла",$A$1))+1,31))),#REF!,"<"&(DATE(YEAR(#REF!),MONTH(#REF!),MID(CELL("имяфайла",$A$1),FIND("]",CELL("имяфайла",$A$1))+1,31)+1))) ->  | AI58: =G58+U40 ->  | AJ58: =H58+V40 ->  | AK58: =I58+W40 ->  | AL58: =J58+X40 -> 
G59: удачных запусков | U59: Число промывок ГТУ | AI59: удачных запусков
G60: =#REF! ->  | H60: =#REF! ->  | I60: =#REF! ->  | J60: =#REF! ->  | K60: =#REF! ->  | L60: =#REF! ->  | M60: =#REF! ->  | N60: =#REF! ->  | O60: =#REF! ->  | P60: =#REF! ->  | Q60: =#REF! ->  | R60: =#REF! ->  | S60: =#REF! ->  | U60: =COUNTIFS(#REF!,"ТГ-1",#REF!,"Промывка",#REF!,">"&(DATE(YEAR(#REF!),MONTH(#REF!),MID(CELL("имяфайла",$A$1),FIND("]",CELL("имяфайла",$A$1))+1,31))),#REF!,"<"&(DATE(YEAR(#REF!),MONTH(#REF!),MID(CELL("имяфайла",$A$1),FIND("]",CELL("имяфайла",$A$1))+1,31)+1))) ->  | V60: =COUNTIFS(#REF!,"ТГ-2",#REF!,"Промывка",#REF!,">"&(DATE(YEAR(#REF!),MONTH(#REF!),MID(CELL("имяфайла",$A$1),FIND("]",CELL("имяфайла",$A$1))+1,31))),#REF!,"<"&(DATE(YEAR(#REF!),MONTH(#REF!),MID(CELL("имяфайла",$A$1),FIND("]",CELL("имяфайла",$A$1))+1,31)+1))) ->  | W60: =COUNTIFS(#REF!,"ТГ-3",#REF!,"Промывка",#REF!,">"&(DATE(YEAR(#REF!),MONTH(#REF!),MID(CELL("имяфайла",$A$1),FIND("]",CELL("имяфайла",$A$1))+1,31))),#REF!,"<"&(DATE(YEAR(#REF!),MONTH(#REF!),MID(CELL("имяфайла",$A$1),FIND("]",CELL("имяфайла",$A$1))+1,31)+1))) ->  | X60: =COUNTIFS(#REF!,"ТГ-4",#REF!,"Промывка",#REF!,">"&(DATE(YEAR(#REF!),MONTH(#REF!),MID(CELL("имяфайла",$A$1),FIND("]",CELL("имяфайла",$A$1))+1,31))),#REF!,"<"&(DATE(YEAR(#REF!),MONTH(#REF!),MID(CELL("имяфайла",$A$1),FIND("]",CELL("имяфайла",$A$1))+1,31)+1))) ->  | Y60: =COUNTIFS(#REF!,"ТГ-11",#REF!,"Промывка",#REF!,">"&(DATE(YEAR(#REF!),MONTH(#REF!),MID(CELL("имяфайла",$A$1),FIND("]",CELL("имяфайла",$A$1))+1,31))),#REF!,"<"&(DATE(YEAR(#REF!),MONTH(#REF!),MID(CELL("имяфайла",$A$1),FIND("]",CELL("имяфайла",$A$1))+1,31)+1))) ->  | Z60: =COUNTIFS(#REF!,"ТГ-12",#REF!,"Промывка",#REF!,">"&(DATE(YEAR(#REF!),MONTH(#REF!),MID(CELL("имяфайла",$A$1),FIND("]",CELL("имяфайла",$A$1))+1,31))),#REF!,"<"&(DATE(YEAR(#REF!),MONTH(#REF!),MID(CELL("имяфайла",$A$1),FIND("]",CELL("имяфайла",$A$1))+1,31)+1))) ->  | AA60: =COUNTIFS(#REF!,"ТГ-6",#REF!,"Промывка",#REF!,">"&(DATE(YEAR(#REF!),MONTH(#REF!),MID(CELL("имяфайла",$A$1),FIND("]",CELL("имяфайла",$A$1))+1,31))),#REF!,"<"&(DATE(YEAR(#REF!),MONTH(#REF!),MID(CELL("имяфайла",$A$1),FIND("]",CELL("имяфайла",$A$1))+1,31)+1))) ->  | AB60: =COUNTIFS(#REF!,"ТГ-7",#REF!,"Промывка",#REF!,">"&(DATE(YEAR(#REF!),MONTH(#REF!),MID(CELL("имяфайла",$A$1),FIND("]",CELL("имяфайла",$A$1))+1,31))),#REF!,"<"&(DATE(YEAR(#REF!),MONTH(#REF!),MID(CELL("имяфайла",$A$1),FIND("]",CELL("имяфайла",$A$1))+1,31)+1))) ->  | AC60: =COUNTIFS(#REF!,"ТГ-9",#REF!,"Промывка",#REF!,">"&(DATE(YEAR(#REF!),MONTH(#REF!),MID(CELL("имяфайла",$A$1),FIND("]",CELL("имяфайла",$A$1))+1,31))),#REF!,"<"&(DATE(YEAR(#REF!),MONTH(#REF!),MID(CELL("имяфайла",$A$1),FIND("]",CELL("имяфайла",$A$1))+1,31)+1))) ->  | AD60: =COUNTIFS(#REF!,"ТГ-10",#REF!,"Промывка",#REF!,">"&(DATE(YEAR(#REF!),MONTH(#REF!),MID(CELL("имяфайла",$A$1),FIND("]",CELL("имяфайла",$A$1))+1,31))),#REF!,"<"&(DATE(YEAR(#REF!),MONTH(#REF!),MID(CELL("имяфайла",$A$1),FIND("]",CELL("имяфайла",$A$1))+1,31)+1))) ->  | AE60: =COUNTIFS(#REF!,"ТГ-5",#REF!,"Промывка",#REF!,">"&(DATE(YEAR(#REF!),MONTH(#REF!),MID(CELL("имяфайла",$A$1),FIND("]",CELL("имяфайла",$A$1))+1,31))),#REF!,"<"&(DATE(YEAR(#REF!),MONTH(#REF!),MID(CELL("имяфайла",$A$1),FIND("]",CELL("имяфайла",$A$1))+1,31)+1))) ->  | AF60: =COUNTIFS(#REF!,"ТГ-8",#REF!,"Промывка",#REF!,">"&(DATE(YEAR(#REF!),MONTH(#REF!),MID(CELL("имяфайла",$A$1),FIND("]",CELL("имяфайла",$A$1))+1,31))),#REF!,"<"&(DATE(YEAR(#REF!),MONTH(#REF!),MID(CELL("имяфайла",$A$1),FIND("]",CELL("имяфайла",$A$1))+1,31)+1))) ->  | AG60: =COUNTIFS(#REF!,"ДЭС",#REF!,"Промывка",#REF!,">"&(DATE(YEAR(#REF!),MONTH(#REF!),MID(CELL("имяфайла",$A$1),FIND("]",CELL("имяфайла",$A$1))+1,31))),#REF!,"<"&(DATE(YEAR(#REF!),MONTH(#REF!),MID(CELL("имяфайла",$A$1),FIND("]",CELL("имяфайла",$A$1))+1,31)+1))) ->  | AI60: =G60+U42 ->  | AJ60: =H60+V42 ->  | AK60: =I60+W42 ->  | AL60: =J60+X42 -> 
G61: неудачных запусков | AI61: неудачных запусков
G62: =#REF! ->  | H62: =#REF! ->  | I62: =#REF! ->  | J62: =#REF! ->  | K62: =#REF! ->  | L62: =#REF! ->  | M62: =#REF! ->  | N62: =#REF! ->  | O62: =#REF! ->  | P62: =#REF! ->  | Q62: =#REF! ->  | R62: =#REF! ->  | S62: =#REF! ->  | AI62: =G62+U44 ->  | AJ62: =H62+V44 ->  | AK62: =I62+W44 ->  | AL62: =J62+X44 -> 
G63: Количество включения стартера | AI63: Количество включения стартера
G64: =#REF! ->  | H64: =#REF! ->  | I64: =#REF! ->  | J64: =#REF! ->  | K64: =#REF! ->  | L64: =#REF! ->  | M64: =#REF! ->  | N64: =#REF! ->  | O64: =#REF! ->  | P64: =#REF! ->  | Q64: =#REF! ->  | R64: =#REF! ->  | S64: =#REF! ->  | AI64: =G64+U46 ->  | AJ64: =H64+V46 ->  | AK64: =I64+W46 ->  | AL64: =J64+X46 -> 
G65: Количество остановов | U65: За текущие сутки, час | AI65: Количество остановов
G66: =G68+G70+G72+G74 ->  | H66: =H68+H70+H72+H74 ->  | S66: =S68+S70+S72+S74 ->  | U66: УРАЛ_1 | V66: УРАЛ_2 | W66: УРАЛ_3 | X66: УРАЛ_4 | Y66: ЭГЭС_11 | Z66: ЭГЭС_12 | AA66: САТУРН_6 | AB66: САТУРН_7 | AC66: МС_9 | AD66: МС_10 | AE66: ПАЭС_3 | AF66: ПАЭС_4 | AG66: ДЭС | AI66: =G66+U48 ->  | AJ66: =H66+V48 ->  | AK66: =I66+W48 ->  | AL66: =J66+X48 ->  | AT66: =R66+AF48 -> 
G67: Нормальный останов (НО) | U67: Наработка ЭС на ХХ | AI67: Нормальный останов (НО)
G68: =#REF! ->  | H68: =#REF! ->  | I68: =#REF! ->  | J68: =#REF! ->  | K68: =#REF! ->  | L68: =#REF! ->  | M68: =#REF! ->  | N68: =#REF! ->  | O68: =#REF! ->  | P68: =#REF! ->  | Q68: =#REF! ->  | R68: =#REF! ->  | S68: =#REF! ->  | U68: =COUNTIF($C$6:$C$29, "ХХ") -> 0 | V68: =COUNTIF($F$6:$F$29, "ХХ") -> 0 | W68: =COUNTIF($I$6:$I$29, "ХХ") -> 0 | X68: =COUNTIF($L$6:$L$29, "ХХ") -> 0 | Y68: =COUNTIF($O$6:$O$29, "ХХ") -> 0 | Z68: =COUNTIF($R$6:$R$29, "ХХ") -> 0 | AA68: =COUNTIF($U$6:$U$29, "ХХ") -> 0 | AB68: =COUNTIF($X$6:$X$29, "ХХ") -> 0 | AC68: =COUNTIF($AA$6:$AA$29, "ХХ") -> 0 | AD68: =COUNTIF($AD$6:$AD$29, "ХХ") -> 0 | AE68: =COUNTIF($AG$6:$AG$29, "ХХ") -> 0 | AF68: =COUNTIF($AJ$6:$AJ$29, "ХХ") -> 0 | AG68: =COUNTIF($AM$6:$AM$29, "ХХ") -> 0 | AI68: =G68+U50 ->  | AJ68: =H68+V50 ->  | AK68: =I68+W50 ->  | AL68: =J68+X50 -> 
G69: Автоматический нормальный останов (АНО) | U69: Наработка ЭС общая | AI69: Автоматический нормальный останов (АНО)
G70: =#REF! ->  | H70: =#REF! ->  | I70: =#REF! ->  | J70: =#REF! ->  | K70: =#REF! ->  | L70: =#REF! ->  | M70: =#REF! ->  | N70: =#REF! ->  | O70: =#REF! ->  | P70: =#REF! ->  | Q70: =#REF! ->  | R70: =#REF! ->  | S70: =#REF! ->  | U70: =COUNTIF($C$6:$C$29, ">0")+COUNTIF($C$6:$C$29, "ХХ") -> 4 | V70: =COUNTIF($F$6:$F$29, ">0")+COUNTIF($F$6:$F$29, "ХХ") -> 0 | W70: =COUNTIF($I$6:$I$29, ">0")+COUNTIF($I$6:$I$29, "ХХ") -> 0 | X70: =COUNTIF($L$6:$L$29, ">0")+COUNTIF($L$6:$L$29, "ХХ") -> 0 | Y70: =COUNTIF($O$6:$O$29, ">0")+COUNTIF($O$6:$O$29, "ХХ") -> 0 | Z70: =COUNTIF($R$6:$R$29, ">0")+COUNTIF($R$6:$R$29, "ХХ") -> 0 | AA70: =COUNTIF($U$6:$U$29, ">0")+COUNTIF($U$6:$U$29, "ХХ") -> 0 | AB70: =COUNTIF($X$6:$X$29, ">0")+COUNTIF($X$6:$X$29, "ХХ") -> 0 | AC70: =COUNTIF($AA$6:$AA$29, ">0")+COUNTIF($AA$6:$AA$29, "ХХ") -> 0 | AD70: =COUNTIF($AD$6:$AD$29, ">0")+COUNTIF($AD$6:$AD$29, "ХХ") -> 0 | AE70: =COUNTIF($AG$6:$AG$29, ">0")+COUNTIF($AG$6:$AG$29, "ХХ") -> 0 | AF70: =COUNTIF($AJ$6:$AJ$29, ">0")+COUNTIF($AJ$6:$AJ$29, "ХХ") -> 0 | AG70: =COUNTIF($AM$6:$AM$29, ">0")+COUNTIF($AM$6:$AM$29, "ХХ") -> 0 | AI70: =G70+U52 ->  | AJ70: =H70+V52 ->  | AK70: =I70+W52 ->  | AL70: =J70+X52 -> 
G71: Аварийный останов по команде оператора (АОК) | U71: Часы простоя ЭС | AI71: Аварийный останов по команде оператора (АОК)
G72: =#REF! ->  | H72: =#REF! ->  | I72: =#REF! ->  | J72: =#REF! ->  | K72: =#REF! ->  | L72: =#REF! ->  | M72: =#REF! ->  | N72: =#REF! ->  | O72: =#REF! ->  | P72: =#REF! ->  | Q72: =#REF! ->  | R72: =#REF! ->  | S72: =#REF! ->  | U72: =U74+U76+U78 -> 3 | V72: =V74+V76+V78 -> 0 | W72: 0 | X72: 0 | Y72: 0 | Z72: 0 | AA72: 0 | AB72: 0 | AC72: 0 | AD72: 0 | AE72: 0 | AF72: 0 | AG72: 0 | AI72: =G72+U54 ->  | AJ72: =H72+V54 ->  | AK72: =I72+W54 ->  | AL72: =J72+X54 -> 
G73: Останов по пожару (ЭО) | U73: в резерве | AI73: Останов по пожару (ЭО)
G74: =#REF! ->  | H74: =#REF! ->  | I74: =#REF! ->  | J74: =#REF! ->  | K74: =#REF! ->  | L74: =#REF! ->  | M74: =#REF! ->  | N74: =#REF! ->  | O74: =#REF! ->  | P74: =#REF! ->  | Q74: =#REF! ->  | R74: =#REF! ->  | S74: =#REF! ->  | U74: =COUNTIF($C$6:$C$29, "РЕЗЕРВ") -> 3 | V74: =COUNTIF($F$6:$F$29, "РЕЗЕРВ") -> 0 | W74: =COUNTIF($I$6:$I$29, "РЕЗЕРВ") -> 0 | X74: =COUNTIF($L$6:$L$29, "РЕЗЕРВ") -> 0 | Y74: =COUNTIF($O$6:$O$29, "РЕЗЕРВ") -> 0 | Z74: =COUNTIF($R$6:$R$29, "РЕЗЕРВ") -> 0 | AA74: =COUNTIF($U$6:$U$29, "РЕЗЕРВ") -> 0 | AB74: =COUNTIF($X$6:$X$29, "РЕЗЕРВ") -> 0 | AC74: =COUNTIF($AA$6:$AA$29, "РЕЗЕРВ") -> 0 | AD74: =COUNTIF($AD$6:$AD$29, "РЕЗЕРВ") -> 0 | AE74: =COUNTIF($AG$6:$AG$29, "РЕЗЕРВ") -> 0 | AF74: =COUNTIF($AJ$6:$AJ$29, "РЕЗЕРВ") -> 0 | AG74: =COUNTIF($AM$6:$AM$29, "РЕЗЕРВ") -> 0 | AI74: =G74+U56 ->  | AJ74: =H74+V56 ->  | AK74: =I74+W56 ->  | AL74: =J74+X56 -> 
G75: число холодных (технологических) прокруток (ХП) | U75: в ремонте | AI75: число холодных (технологических) прокруток (ХП)
G76: =#REF! ->  | H76: =#REF! ->  | I76: =#REF! ->  | J76: =#REF! ->  | K76: =#REF! ->  | L76: =#REF! ->  | M76: =#REF! ->  | N76: =#REF! ->  | O76: =#REF! ->  | P76: =#REF! ->  | Q76: =#REF! ->  | R76: =#REF! ->  | S76: =#REF! ->  | U76: =COUNTIF($C$6:$C$29, "РЕМОНТ") -> 0 | V76: =COUNTIF($F$6:$F$29, "РЕМОНТ") -> 0 | W76: =COUNTIF($I$6:$I$29, "РЕМОНТ") -> 0 | X76: =COUNTIF($L$6:$L$29, "РЕМОНТ") -> 0 | Y76: =COUNTIF($O$6:$O$29, "РЕМОНТ") -> 0 | Z76: =COUNTIF($R$6:$R$29, "РЕМОНТ") -> 0 | AA76: =COUNTIF($U$6:$U$29, "РЕМОНТ") -> 0 | AB76: =COUNTIF($X$6:$X$29, "РЕМОНТ") -> 0 | AC76: =COUNTIF($AA$6:$AA$29, "РЕМОНТ") -> 0 | AD76: =COUNTIF($AD$6:$AD$29, "РЕМОНТ") -> 0 | AE76: =COUNTIF($AG$6:$AG$29, "РЕМОНТ") -> 0 | AF76: =COUNTIF($AJ$6:$AJ$29, "РЕМОНТ") -> 0 | AG76: =COUNTIF($AM$6:$AM$29, "РЕМОНТ") -> 0 | AI76: =G76+U58 ->  | AJ76: =H76+V58 ->  | AK76: =I76+W58 ->  | AL76: =J76+X58 -> 
G77: Число промывок ГТУ | U77: в ТО | AI77: Число промывок ГТУ
G78: =#REF! ->  | H78: =#REF! ->  | I78: =#REF! ->  | J78: =#REF! ->  | K78: =#REF! ->  | L78: =#REF! ->  | M78: =#REF! ->  | N78: =#REF! ->  | O78: =#REF! ->  | P78: =#REF! ->  | Q78: =#REF! ->  | R78: =#REF! ->  | S78: =#REF! ->  | U78: =COUNTIF($C$6:$C$29, "ТО") -> 0 | V78: =COUNTIF($F$6:$F$29, "ТО") -> 0 | W78: =COUNTIF($I$6:$I$29, "ТО") -> 0 | X78: =COUNTIF($L$6:$L$29, "ТО") -> 0 | Y78: =COUNTIF($O$6:$O$29, "ТО") -> 0 | Z78: =COUNTIF($R$6:$R$29, "ТО") -> 0 | AA78: =COUNTIF($U$6:$U$29, "ТО") -> 0 | AB78: =COUNTIF($X$6:$X$29, "ТО") -> 0 | AC78: =COUNTIF($AA$6:$AA$29, "ТО") -> 0 | AD78: =COUNTIF($AD$6:$AD$29, "ТО") -> 0 | AE78: =COUNTIF($AG$6:$AG$29, "ТО") -> 0 | AF78: =COUNTIF($AJ$6:$AJ$29, "ТО") -> 0 | AG78: =COUNTIF($AM$6:$AM$29, "ТО") -> 0 | AI78: =G78+U60 ->  | AJ78: =H78+V60 ->  | AK78: =I78+W60 ->  | AL78: =J78+X60 -> 
R81: УРАЛ | W81: 12 МВт | AB81: САТУРН | AG81: МОТОР-СИЧ | AL81: ПАЭС | AR81: ДЭС
R82: 0-НОМ | S82: НОМ-МАКС | T82: ИТОГО | W82: 0-НОМ | X82: НОМ-МАКС | Y82: ИТОГО | AB82: 0-НОМ | AC82: НОМ-МАКС | AD82: ИТОГО | AG82: 0-НОМ | AH82: НОМ-МАКС | AI82: ИТОГО | AL82: 0-1250 | AM82: 1250-2000 | AN82: 2000-2500 | AO82: ИТОГО | AR82: 0 | AS82: 0-640 | AT82: более 640 | AU82: ИТОГО
Q83: У-1 | R83: =COUNTIF(C6:C29,"<6001") -> 21 | S83: =COUNTIF(C6:C29,"<7200")-R83 -> 0 | T83: =COUNT(C6:C29) -> 21 | V83: № 11 | W83: =COUNTIF(O6:O29,"<12001") -> 24 | X83: =COUNTIF(O6:O29,"<14400")-W83 -> 0 | Y83: =COUNT(O6:O29) -> 24 | AA83: С-6 | AB83: =COUNTIF(U6:U29,"<6001") -> 24 | AC83: =COUNTIF(U6:U29,"<7200")-AB83 -> 0 | AD83: =COUNT(U6:U29) -> 24 | AF83: М-С-9 | AG83: =COUNTIF(AA6:AA29,"<6000") -> 24 | AH83: =COUNTIF(AA6:AA29,"<7000")-AG83 -> 0 | AI83: =COUNT(AA6:AA29) -> 24 | AK83: П-3У | AL83: =COUNTIF(AG6:AG29,"<1250") -> 24 | AM83: =COUNTIF(AG6:AG29,"<2000")-AL83 -> 0 | AN83: =COUNTIF(AG6:AG29,"<3000")-AL83-AM83 -> 0 | AO83: =COUNT(AG6:AG29) -> 24 | AQ83: ДЭС | AR83: =COUNTIF(AM6:AM29,"<1") -> 24 | AS83: =COUNTIF(AM6:AM29,"<640")-AR83 -> 0 | AT83: =COUNTIF(AM6:AM29,"<1000")-AR83-AS83 -> 0 | AU83: =COUNT(AM6:AM29) -> 24
Q84: У-2 | R84: =COUNTIF(F6:F29,"<6001") -> 24 | S84: =COUNTIF(F6:F29,"<7200")-R84 -> 0 | T84: =COUNT(F6:F29) -> 24 | V84: № 12 | W84: =COUNTIF(R6:R29,"<12001") -> 24 | X84: =COUNTIF(R6:R29,"<14400")-W84 -> 0 | Y84: =COUNT(R6:R29) -> 24 | AA84: С-7 | AB84: =COUNTIF(X6:X29,"<6001") -> 24 | AC84: =COUNTIF(X6:X29,"<7200")-AB84 -> 0 | AD84: =COUNT(X6:X29) -> 24 | AF84: М-С-10 | AG84: =COUNTIF(AD6:AD29,"<6000") -> 24 | AH84: =COUNTIF(AD6:AD29,"<7000")-AG84 -> 0 | AI84: =COUNT(AD6:AD29) -> 24 | AK84: П-4У | AL84: =COUNTIF(AJ6:AJ29,"<1250") -> 24 | AM84: =COUNTIF(AJ6:AJ29,"<2000")-AL84 -> 0 | AN84: =COUNTIF(AJ6:AJ29,"<3000")-AL84-AM84 -> 0 | AO84: =COUNT(AJ6:AJ29) -> 24
Q85: У-3 | R85: =COUNTIF(I6:I29,"<6001") -> 24 | S85: =COUNTIF(I6:I29,"<7200")-R85 -> 0 | T85: =COUNT(I6:I29) -> 24
Q86: У-4 | R86: =COUNTIF(L6:L29,"<6001") -> 24 | S86: =COUNTIF(L6:L29,"<7200")-R86 -> 0 | T86: =COUNT(L6:L29) -> 24
